Workbook

Sheet Utility Pie

Sheet Sheet3
A1: ALCABC | B1: Special Schools | C1: Electric
A2: ALCWEST | B2: Special Schools | C2: Electric
A3: ANDREES | B3: Elementary Schools | C3: Electric
A4: ANTHONYMS | B4: Middle Schools | C4: Electric
A5: ARAGONMS | B5: Middle Schools | C5: Electric
A6: ARNOLDMS | B6: Middle Schools | C6: Electric
A7: AULTES | B7: Elementary Schools | C7: Electric
A8: BANEES | B8: Elementary Schools | C8: Electric
A9: BANGES | B9: Elementary Schools | C9: Electric
A10: BARKERTRANS | B10: Administration | C10: Electric
A11: BERRYCENTER | B11: Administration | C11: Electric
A12: BIRKESES | B12: Elementary Schools | C12: Electric
A13: BLACKES | B13: Elementary Schools | C13: Electric
A14: BLEYLMS | B14: Middle Schools | C14: Electric
A15: BRADLEYPOLICESTATION | B15: Administration | C15: Electric
A16: BRIDGELANDHS | B16: High Schools | C16: Electric
A17: CAMPBELLMS | B17: Middle Schools | C17: Electric
A18: CFISDNATATORIUM | B18: Administration | C18: Electric
A19: COOKMS | B19: Middle Schools | C19: Electric
A20: COPELANDES | B20: Elementary Schools | C20: Electric
A21: CY-CREEKHS | B21: High Schools | C21: Electric
A22: CY-FAIRCOMPLEXRETENTIONPOND | B22: Administration | C22: Electric
A23: CY-FAIRHS | B23: High Schools | C23: Electric
A24: CY-FAIRHS-BALLFIELD | B24: Administration | C24: Electric
A25: CY-FALLSHS | B25: High Schools | C25: Electric
A26: CY-LAKESHS | B26: High Schools | C26: Electric
A27: CY-PARKHS | B27: High Schools | C27: Electric
A28: CY-RANCHHS | B28: High Schools | C28: Electric
A29: CY-RIDGEHS | B29: High Schools | C29: Electric
A30: CY-SPRINGSHS | B30: High Schools | C30: Electric
A31: CY-WOODSHS | B31: High Schools | C31: Electric
A32: DANISHES | B32: Elementary Schools | C32: Electric
A33: DEANMS | B33: Middle Schools | C33: Electric
A34: DURYEAES | B34: Elementary Schools | C34: Electric
A35: ELC1 | B35: Administration | C35: Electric
A36: ELC2 | B36: Administration | C36: Electric
A37: ELDRIDGETRANS | B37: Administration | C37: Electric
A38: EMERYES | B38: Elementary Schools | C38: Electric
A39: EMMOTTES | B39: Elementary Schools | C39: Electric
A40: EXHIBITCENTERSCIENCERESOURCEC | B40: Administration | C40: Electric
A41: EXHIBITCENTERTELGEAG | B41: Administration | C41: Electric
A42: FALCONCOMPLEX | B42: Administration | C42: Electric
A43: FARNEYES | B43: Elementary Schools | C43: Electric
A44: FIESTES | B44: Elementary Schools | C44: Electric
A45: FOODPRODUCTIONCENTER | B45: Administration | C45: Electric
A46: FOODSERVICEWAREHOUSE | B46: Administration | C46: Electric
A47: FRANCONEES | B47: Elementary Schools | C47: Electric
A48: FRAZIERES | B48: Elementary Schools | C48: Electric
A49: GLEASONES | B49: Elementary Schools | C49: Electric
A50: GOODSONMS | B50: Middle Schools | C50: Electric
A51: HAIRGROVEES | B51: Elementary Schools | C51: Electric
A52: HAMILTONES | B52: Elementary Schools | C52: Electric
A53: HAMILTONMS | B53: Middle Schools | C53: Electric
A54: HANCOCKES | B54: Elementary Schools | C54: Electric
A55: HEMMENWAYES | B55: Elementary Schools | C55: Electric
A56: HOLBROOKES | B56: Elementary Schools | C56: Electric
A57: HOLMSLEYES | B57: Elementary Schools | C57: Electric
A58: HOOVERES | B58: Elementary Schools | C58: Electric
A59: HOPPERMS | B59: Middle Schools | C59: Electric
A60: HORNEES | B60: Elementary Schools | C60: Electric
A61: ISCA | B61: Administration | C61: Electric
A62: ISCB | B62: Administration | C62: Electric
A63: ISCC | B63: Administration | C63: Electric
A64: ISCC-EXLIGHT | B64: Administration | C64: Electric
A65: ISCD | B65: Administration | C65: Electric
A66: ISCDATACENTER | B66: Administration | C66: Electric
A67: ISCSW | B67: Administration | C67: Electric
A68: ISCW | B68: Administration | C68: Electric
A69: JARVISCENTRALPLANT | B69: Administration | C69: Electric
A70: JERSEYVILLAGEHS | B70: High Schools | C70: Electric
A71: JERSEYVILLAGESTADIUM | B71: Administration | C71: Electric
A72: JOWELLES | B72: Elementary Schools | C72: Electric
A73: KAHLAMS | B73: Middle Schools | C73: Electric
A74: KEITHES | B74: Elementary Schools | C74: Electric
A75: KIRKES | B75: Elementary Schools | C75: Electric
A76: LABAYMS | B76: Middle Schools | C76: Electric
A77: LAMKINES | B77: Elementary Schools | C77: Electric
A78: LANGHAMCREEKHS | B78: High Schools | C78: Electric
A79: LANGHAMCREEKRETENTIONPOND | B79: Administration | C79: Electric
A80: LEEES | B80: Elementary Schools | C80: Electric
A81: LIEDERES | B81: Elementary Schools | C81: Electric
A82: LOWERYES | B82: Elementary Schools | C82: Electric
A83: MAINTENANCEOPER | B83: Administration | C83: Electric
A84: MATZKEES | B84: Elementary Schools | C84: Electric
A85: MATZKEMILLSES | B85: Elementary Schools | C85: Electric
A86: MCFEEES | B86: Elementary Schools | C86: Electric
A87: METCALFES | B87: Elementary Schools | C87: Electric
A88: MILLSAPES | B88: Elementary Schools | C88: Electric
A89: MILLSAPNATURETRAIL | B89: Administration | C89: Electric
A90: MILLSAPROPES | B90: Administration | C90: Electric
A91: MOOREES | B91: Elementary Schools | C91: Electric
A92: OWENSES | B92: Elementary Schools | C92: Electric
A93: POPEES | B93: Elementary Schools | C93: Electric
A94: POSTES | B94: Elementary Schools | C94: Electric
A95: POSTMAES | B95: Elementary Schools | C95: Electric
A96: PRIDGEONSTADIUM | B96: Administration | C96: Electric
A97: RECYCLECENTER | B97: Administration | C97: Electric
A98: REEDES | B98: Elementary Schools | C98: Electric
A99: RENNELLES | B99: Elementary Schools | C99: Electric
A100: ROBINSONES | B100: Elementary Schools | C100: Electric
A101: ROBISONES | B101: Elementary Schools | C101: Electric
A102: SALYARDSMS | B102: Middle Schools | C102: Electric
A103: SAMPSONES | B103: Elementary Schools | C103: Electric
A104: SATELLITECOLDFOODWAREHOUSE | B104: Administration | C104: Electric
A105: SHERIDANES | B105: Elementary Schools | C105: Electric
A106: SMITHMS | B106: Middle Schools | C106: Electric
A107: SPILLANEMS | B107: Middle Schools | C107: Electric
A108: SWENKEES | B108: Elementary Schools | C108: Electric
A109: TELGETRANS | B109: Administration | C109: Electric
A110: THORNTONMS | B110: Middle Schools | C110: Electric
A111: TIPPSES | B111: Elementary Schools | C111: Electric
A112: TRUITTMS | B112: Middle Schools | C112: Electric
A113: WALKERES | B113: Elementary Schools | C113: Electric
A114: WARNERES | B114: Elementary Schools | C114: Electric
A115: WATKINSMS | B115: Middle Schools | C115: Electric
A116: WELLSES | B116: Elementary Schools | C116: Electric
A117: WESTGREENAGSCIENCECENTER | B117: Administration | C117: Electric
A118: WESTGREENTRANS | B118: Administration | C118: Electric
A119: WILLBERNES | B119: Elementary Schools | C119: Electric
A120: WILSONES | B120: Elementary Schools | C120: Electric
A121: WINDFERNANNEX | B121: Special Schools | C121: Electric
A122: WINDFERNHS | B122: Special Schools | C122: Electric
A123: WOODARDES | B123: Elementary Schools | C123: Electric
A124: YEAGERES | B124: Elementary Schools | C124: Electric
A125: ADAM-ES | B125: Elementary Schools | C125: Electric
A126: ALCABC | B126: Special Schools | C126: Electric
A127: ALCWEST | B127: Special Schools | C127: Electric
A128: ANDREES | B128: Elementary Schools | C128: Electric
A129: ANTHONYMS | B129: Middle Schools | C129: Electric
A130: ARAGONMS | B130: Middle Schools | C130: Electric
A131: ARNOLDMS | B131: Middle Schools | C131: Electric
A132: AULTES | B132: Elementary Schools | C132: Electric
A133: BANEES | B133: Elementary Schools | C133: Electric
A134: BANGES | B134: Elementary Schools | C134: Electric
A135: BARKERTRANS | B135: Administration | C135: Electric
A136: BERRYCENTER | B136: Administration | C136: Electric
A137: BIRKESES | B137: Elementary Schools | C137: Electric
A138: BLACKES | B138: Elementary Schools | C138: Electric
A139: BLEYLMS | B139: Middle Schools | C139: Electric
A140: BRADLEYPOLICESTATION | B140: Administration | C140: Electric
A141: BRIDGELANDHS | B141: High Schools | C141: Electric
A142: CAMPBELLMS | B142: Middle Schools | C142: Electric
A143: CFISDNATATORIUM | B143: Administration | C143: Electric
A144: COOKMS | B144: Middle Schools | C144: Electric
A145: COPELANDES | B145: Elementary Schools | C145: Electric
A146: CY-CREEKHS | B146: High Schools | C146: Electric
A147: CY-FAIRCOMPLEXRETENTIONPOND | B147: Administration | C147: Electric
A148: CY-FAIRHS | B148: High Schools | C148: Electric
A149: CY-FAIRHS-BALLFIELD | B149: Administration | C149: Electric
A150: CY-FALLSHS | B150: High Schools | C150: Electric
A151: CY-LAKESHS | B151: High Schools | C151: Electric
A152: CY-PARKHS | B152: High Schools | C152: Electric
A153: CY-RANCHHS | B153: High Schools | C153: Electric
A154: CY-RIDGEHS | B154: High Schools | C154: Electric
A155: CY-SPRINGSHS | B155: High Schools | C155: Electric
A156: CY-WOODSHS | B156: High Schools | C156: Electric
A157: DANISHES | B157: Elementary Schools | C157: Electric
A158: DEANMS | B158: Middle Schools | C158: Electric
A159: DURYEAES | B159: Elementary Schools | C159: Electric
A160: ELC1 | B160: Administration | C160: Electric
A161: ELC2 | B161: Administration | C161: Electric
A162: ELDRIDGETRANS | B162: Administration | C162: Electric
A163: EMERYES | B163: Elementary Schools | C163: Electric
A164: EMMOTTES | B164: Elementary Schools | C164: Electric
A165: EXHIBITCENTERSCIENCERESOURCEC | B165: Administration | C165: Electric
A166: EXHIBITCENTERTELGEAG | B166: Administration | C166: Electric
A167: FALCONCOMPLEX | B167: Administration | C167: Electric
A168: FARNEYES | B168: Elementary Schools | C168: Electric
A169: FIESTES | B169: Elementary Schools | C169: Electric
A170: FOODPRODUCTIONCENTER | B170: Administration | C170: Electric
A171: FOODSERVICEWAREHOUSE | B171: Administration | C171: Electric
A172: FRANCONEES | B172: Elementary Schools | C172: Electric
A173: FRAZIERES | B173: Elementary Schools | C173: Electric
A174: GLEASONES | B174: Elementary Schools | C174: Electric
A175: GOODSONMS | B175: Middle Schools | C175: Electric
A176: HAIRGROVEES | B176: Elementary Schools | C176: Electric
A177: HAMILTONES | B177: Elementary Schools | C177: Electric
A178: HAMILTONMS | B178: Middle Schools | C178: Electric
A179: HANCOCKES | B179: Elementary Schools | C179: Electric
A180: HEMMENWAYES | B180: Elementary Schools | C180: Electric
A181: HOLBROOKES | B181: Elementary Schools | C181: Electric
A182: HOLMSLEYES | B182: Elementary Schools | C182: Electric
A183: HOOVERES | B183: Elementary Schools | C183: Electric
A184: HOPPERMS | B184: Middle Schools | C184: Electric
A185: HORNEES | B185: Elementary Schools | C185: Electric
A186: ISCA | B186: Administration | C186: Electric
A187: ISCB | B187: Administration | C187: Electric
A188: ISCC | B188: Administration | C188: Electric
A189: ISCC-EXLIGHT | B189: Administration | C189: Electric
A190: ISCD | B190: Administration | C190: Electric
A191: ISCDATACENTER | B191: Administration | C191: Electric
A192: ISCSW | B192: Administration | C192: Electric
A193: ISCW | B193: Administration | C193: Electric
A194: JARVISCENTRALPLANT | B194: Administration | C194: Electric
A195: JERSEYVILLAGEHS | B195: High Schools | C195: Electric
A196: JERSEYVILLAGESTADIUM | B196: Administration | C196: Electric
A197: JOWELLES | B197: Elementary Schools | C197: Electric
A198: KAHLAMS | B198: Middle Schools | C198: Electric
A199: KEITHES | B199: Elementary Schools | C199: Electric
A200: KIRKES | B200: Elementary Schools | C200: Electric
... 621 more rows

Sheet Sheet1
A1: School Type | B1: High Schools
A3: Row Labels
A4: BRIDGELANDHS
A5: CY-CREEKHS
A6: CY-FAIRHS
A7: CY-FALLSAGVOC
A8: CY-FALLSHS
A9: CY-LAKESHS
A10: CY-PARKHS
A11: CY-RANCHHS
A12: CY-RIDGEHS
A13: CY-SPRINGSHS
A14: CY-WOODSHS
A15: JERSEYVILLAGEHS
A16: LANGHAMCREEKHS
A17: Grand Total

Sheet DataYY03
A1: School Type | B1: Utility | C1: Place | D1: Location | E1: Area | F1: Eff. Date | G1: kWhB | H1: kWhC | I1: Var [%] | J1: Base Year 2 | K1: Cost | L1: Var [%]3 | M1: Base Year 4 | N1: Current Year5 | O1: Var [%]6
A2: =VLOOKUP(C2,Sheet3!$A$1:$C$821,2,FALSE) -> Elementary Schools | B2: Electric | C2: ADAM-ES | D2: Houston, TX | E2: 103177 | F2: 367 | G2: 586800 | H2: 603360 | I2: 2.82208589 | J2: 44139.93 | K2: 44980.85 | L2: 1.905123094 | M2: 3211 | N2: 2800 | O2: -12.79975086
A3: =VLOOKUP(C3,Sheet3!$A$1:$C$821,2,FALSE) -> Special Schools | B3: Electric | C3: ALCABC | D3: Houston, TX | E3: 56061 | F3: 367 | G3: 377472 | H3: 367296 | I3: -2.695829095 | J3: 28698.65 | K3: 26960.08 | L3: -6.058020151 | M3: 2138 | N3: 1641 | O3: -23.24602432
A4: =VLOOKUP(C4,Sheet3!$A$1:$C$821,2,FALSE) -> Special Schools | B4: Electric | C4: ALCWEST | D4: Katy, TX | E4: 50839 | F4: 367 | G4: 276096 | H4: 284352 | I4: 2.990264256 | J4: 20246.69 | K4: 19725.98 | L4: -2.57182779 | M4: 1396 | N4: 1107 | O4: -20.70200573
A5: =VLOOKUP(C5,Sheet3!$A$1:$C$821,2,FALSE) -> Elementary Schools | B5: Electric | C5: ANDREES | D5: Cypress, TX | E5: 100156 | F5: 43952 | G5: 614784 | H5: 585024 | I5: -4.840724547 | J5: 44097.53 | K5: 42464.25 | L5: -3.703790212 | M5: 2962 | N5: 2562 | O5: -13.50438893
A6: =VLOOKUP(C6,Sheet3!$A$1:$C$821,2,FALSE) -> Middle Schools | B6: Electric | C6: ANTHONYMS | D6: Cypress, TX | E6: 244123 | F6: 367 | G6: 1159110 | H6: 1057285 | I6: -8.784757271 | J6: 80346.56 | K6: 72921.05 | L6: -9.241851798 | M6: 6192 | N6: 4563 | O6: -26.30813953
A7: =VLOOKUP(C7,Sheet3!$A$1:$C$821,2,FALSE) -> Middle Schools | B7: Electric | C7: ARAGONMS | D7: Houston, TX | E7: 219821 | F7: 367 | G7: 1227534 | H7: 1177837 | I7: -4.0485233 | J7: 82742.96 | K7: 88407.44 | L7: 6.845875468 | M7: 5245 | N7: 5239 | O7: -0.1143946616
A8: =VLOOKUP(C8,Sheet3!$A$1:$C$821,2,FALSE) -> Middle Schools | B8: Electric | C8: ARNOLDMS | D8: Cypress, TX | E8: 210699 | F8: 44409 | G8: 1191084 | H8: 1196777 | I8: 0.4779679687 | J8: 71842.71 | K8: 71437.4 | L8: -0.5641630167 | M8: 3114 | N8: 2921 | O8: -6.197816313
A9: =VLOOKUP(C9,Sheet3!$A$1:$C$821,2,FALSE) -> Elementary Schools | B9: Electric | C9: AULTES | D9: Cypress, TX | E9: 91912 | F9: 43952 | G9: 316416 | H9: 314496 | I9: -0.6067961165 | J9: 23266.2 | K9: 23244.96 | L9: -0.09129122934 | M9: 1540 | N9: 1420 | O9: -7.792207792
A10: =VLOOKUP(C10,Sheet3!$A$1:$C$821,2,FALSE) -> Elementary Schools | B10: Electric | C10: BANEES | D10: Houston, TX | E10: 106804 | F10: 367 | G10: 557568 | H10: 552576 | I10: -0.8953168044 | J10: 42653.63 | K10: 42195.91 | L10: -1.073109135 | M10: 2987 | N10: 2597 | O10: -13.05657851
A11: =VLOOKUP(C11,Sheet3!$A$1:$C$821,2,FALSE) -> Elementary Schools | B11: Electric | C11: BANGES | D11: Houston, TX | E11: 89313 | F11: 44044 | G11: 403488 | H11: 423936 | I11: 5.067808708 | J11: 29425.17 | K11: 30746.36 | L11: 4.489999548 | M11: 1875 | N11: 1851 | O11: -1.28
A12: =VLOOKUP(C12,Sheet3!$A$1:$C$821,2,FALSE) -> Administration | B12: Electric | C12: BARKERTRANS | D12: Houston, TX | E12: 22677 | F12: 367 | G12: 180480 | H12: 177312 | I12: -1.755319149 | J12: 11490.05 | K12: 11940.47 | L12: 3.92008738 | M12: 650 | N12: 645 | O12: -0.7692307692
A13: =VLOOKUP(C13,Sheet3!$A$1:$C$821,2,FALSE) -> Administration | B13: Electric | C13: BERRYCENTER | D13: Cypress, TX | E13: 491434 | F13: 367 | G13: 2786626 | H13: 2411171 | I13: -13.47346217 | J13: 180277.45 | K13: 172961 | L13: -4.058438812 | M13: 9574 | N13: 9049 | O13: -5.483601421
A14: =VLOOKUP(C14,Sheet3!$A$1:$C$821,2,FALSE) -> Elementary Schools | B14: Electric | C14: BIRKESES | D14: Houston, TX | E14: 104952 | F14: 44044 | G14: 632640 | H14: 749568 | I14: 18.48254932 | J14: 45891.69 | K14: 53699.46 | L14: 17.01347237 | M14: 3200 | N14: 3186 | O14: -0.4375
A15: =VLOOKUP(C15,Sheet3!$A$1:$C$821,2,FALSE) -> Elementary Schools | B15: Electric | C15: BLACKES | D15: Cypress, TX | E15: 101992 | F15: 44409 | G15: 472320 | H15: 513216 | I15: 8.658536585 | J15: 36228.04 | K15: 38611.4 | L15: 6.578771581 | M15: 2668 | N15: 2413 | O15: -9.557721139
A16: =VLOOKUP(C16,Sheet3!$A$1:$C$821,2,FALSE) -> Middle Schools | B16: Electric | C16: BLEYLMS | D16: Houston, TX | E16: 234294 | F16: 44409 | G16: 1037167 | H16: 1101311 | I16: 6.18453923 | J16: 70395.48 | K16: 71691.43 | L16: 1.840956266 | M16: 3735 | N16: 3276 | O16: -12.28915663
A17: =VLOOKUP(C17,Sheet3!$A$1:$C$821,2,FALSE) -> Administration | B17: Electric | C17: BRADLEYPOLICESTATION | D17: Cypress, TX | E17: 19680 | F17: 43952 | G17: 307488 | H17: 308160 | I17: 0.218545114 | J17: 17471.54 | K17: 18420.77 | L17: 5.43300705 | M17: 767 | N17: 813 | O17: 5.997392438
A18: Special Schools | B18: Electric | C18: BRAUTIGAMCENTER | D18: Houston, TX | E18: 79751 | F18: 44409 | G18: 578412 | H18: 458779 | I18: -20.68300796 | J18: 36881.24 | K18: 35566.2 | L18: -3.565606796 | M18: 2478 | N18: 2171 | O18: -12.38902341
A19: =VLOOKUP(C19,Sheet3!$A$1:$C$821,2,FALSE) -> High Schools | B19: Electric | C19: BRIDGELANDHS | D19: Cypress, TX | E19: 579612 | F19: 44409 | G19: 2995677 | H19: 2891054 | I19: -3.492465977 | J19: 203843.96 | K19: 202046.44 | L19: -0.8818117544 | M19: 14064 | N19: 13083 | O19: -6.975255973
A20: =VLOOKUP(C20,Sheet3!$A$1:$C$821,2,FALSE) -> Middle Schools | B20: Electric | C20: CAMPBELLMS | D20: Houston, TX | E20: 232217 | F20: 44409 | G20: 1317375 | H20: 1367529 | I20: 3.807116425 | J20: 92839.38 | K20: 88480.98 | L20: -4.694559572 | M20: 5786 | N20: 4999 | O20: -13.60179744
A21: =VLOOKUP(C21,Sheet3!$A$1:$C$821,2,FALSE) -> Administration | B21: Electric | C21: CFISDNATATORIUM | D21: Houston, TX | E21: 49471 | F21: 367 | G21: 2046640 | H21: 1371504 | I21: -32.98753078 | J21: 119082.18 | K21: 94225.93 | L21: -20.87319026 | M21: 4768 | N21: 3910 | O21: -17.99496644
A22: =VLOOKUP(C22,Sheet3!$A$1:$C$821,2,FALSE) -> Middle Schools | B22: Electric | C22: COOKMS | D22: Houston, TX | E22: 205797 | F22: 43952 | G22: 1110051 | H22: 1038035 | I22: -6.487629848 | J22: 73646.02 | K22: 70245.24 | L22: -4.617737659 | M22: 3959 | N22: 4409 | O22: 11.36650669
A23: =VLOOKUP(C23,Sheet3!$A$1:$C$821,2,FALSE) -> Elementary Schools | B23: Electric | C23: COPELANDES | D23: Houston, TX | E23: 91324 | F23: 44409 | G23: 492480 | H23: 513792 | I23: 4.32748538 | J23: 38578.19 | K23: 39904.81 | L23: 3.438782379 | M23: 2972 | N23: 2605 | O23: -12.34858681
A24: =VLOOKUP(C24,Sheet3!$A$1:$C$821,2,FALSE) -> High Schools | B24: Electric | C24: CY-CREEKHS | D24: Houston, TX | E24: 528099 | F24: 44409 | G24: 3250592 | H24: 2810249 | I24: -13.54654783 | J24: 200486.28 | K24: 189060.54 | L24: -5.699013419 | M24: 12235 | N24: 8949 | O24: -26.85737638
A25: =VLOOKUP(C25,Sheet3!$A$1:$C$821,2,FALSE) -> Administration | B25: Electric | C25: CY-FAIRCOMPLEXRETENTIONPOND | D25: Cypress, TX | E25: 0 | F25: 367 | G25: 460 | H25: 1044 | I25: 126.9565217 | J25: 426.99 | K25: 691.73 | L25: 62.00145202 | M25: 45 | N25: 80 | O25: 77.77777778
A26: =VLOOKUP(C26,Sheet3!$A$1:$C$821,2,FALSE) -> High Schools | B26: Electric | C26: CY-FAIRHS | D26: Cypress, TX | E26: 507380 | F26: 44409 | G26: 4017425 | H26: 3801349 | I26: -5.37847004 | J26: 231342.9 | K26: 239781.77 | L26: 3.647775661 | M26: 11961 | N26: 11614 | O26: -2.901095226
A27: =VLOOKUP(C27,Sheet3!$A$1:$C$821,2,FALSE) -> Administration | B27: Electric | C27: CY-FAIRHS-BALLFIELD | D27: Cypress, TX | E27: 0 | F27: 367 | G27: 15168 | H27: 16896 | I27: 11.39240506 | J27: 7291.79 | K27: 4579.47 | L27: -37.19690227 | M27: 929 | N27: 504 | O27: -45.74811625
A28: =VLOOKUP(C28,Sheet3!$A$1:$C$821,2,FALSE) -> High Schools | B28: Electric | C28: CY-FALLSHS | D28: Houston, TX | E28: 565245 | F28: 44409 | G28: 2456496 | H28: 2435884 | I28: -0.8390813582 | J28: 163479.2 | K28: 163322.52 | L28: -0.09584093879 | M28: 8758 | N28: 7813 | O28: -10.79013473
A29: =VLOOKUP(C29,Sheet3!$A$1:$C$821,2,FALSE) -> High Schools | B29: Electric | C29: CY-LAKESHS | D29: Katy, TX | E29: 514068 | F29: 43952 | G29: 3177900 | H29: 3259515 | I29: 2.568205419 | J29: 198831.52 | K29: 198233.01 | L29: -0.3010136421 | M29: 11798 | N29: 9898 | O29: -16.10442448
A30: =VLOOKUP(C30,Sheet3!$A$1:$C$821,2,FALSE) -> High Schools | B30: Electric | C30: CY-PARKHS | D30: Cypress, TX | E30: 764731 | F30: 367 | G30: 3187777 | H30: 4272948 | I30: 34.04162211 | J30: 227243.69 | K30: 286478.76 | L30: 26.06676119 | M30: 16767 | N30: 16895 | O30: 0.7634043061
A31: =VLOOKUP(C31,Sheet3!$A$1:$C$821,2,FALSE) -> High Schools | B31: Electric | C31: CY-RANCHHS | D31: Cypress, TX | E31: 527481 | F31: 44409 | G31: 3683221 | H31: 3785028 | I31: 2.764075248 | J31: 269406.75 | K31: 271798.14 | L31: 0.8876503651 | M31: 20626 | N31: 18841 | O31: -8.654125861
A32: =VLOOKUP(C32,Sheet3!$A$1:$C$821,2,FALSE) -> High Schools | B32: Electric | C32: CY-RIDGEHS | D32: Houston, TX | E32: 502564 | F32: 44044 | G32: 2792075 | H32: 2795312 | I32: 0.1159352811 | J32: 171454.93 | K32: 182059.84 | L32: 6.185246467 | M32: 9486 | N32: 10187 | O32: 7.389837655
A33: =VLOOKUP(C33,Sheet3!$A$1:$C$821,2,FALSE) -> High Schools | B33: Electric | C33: CY-SPRINGSHS | D33: Cypress, TX | E33: 478615 | F33: 44044 | G33: 2874424 | H33: 2692359 | I33: -6.333964648 | J33: 183496.8 | K33: 168961.57 | L33: -7.921244403 | M33: 9628 | N33: 9477 | O33: -1.568342335
A34: =VLOOKUP(C34,Sheet3!$A$1:$C$821,2,FALSE) -> High Schools | B34: Electric | C34: CY-WOODSHS | D34: Cypress, TX | E34: 501009 | F34: 44044 | G34: 1774633 | H34: 1657208 | I34: -6.616861064 | J34: 110586.71 | K34: 108774.51 | L34: -1.638714091 | M34: 6335 | N34: 5785 | O34: -8.681925809
A35: =VLOOKUP(C35,Sheet3!$A$1:$C$821,2,FALSE) -> Elementary Schools | B35: Electric | C35: DANISHES | D35: Houston, TX | E35: 98052 | F35: 43952 | G35: 598649 | H35: 634915 | I35: 6.057973871 | J35: 42925.9 | K35: 47911.91 | L35: 11.61538838 | M35: 2512 | N35: 2458 | O35: -2.149681529
A36: =VLOOKUP(C36,Sheet3!$A$1:$C$821,2,FALSE) -> Middle Schools | B36: Electric | C36: DEANMS | D36: Houston, TX | E36: 222788 | F36: 44044 | G36: 1225078 | H36: 1344727 | I36: 9.76664343 | J36: 85448.99 | K36: 94041.04 | L36: 10.05518029 | M36: 5424 | N36: 4936 | O36: -8.997050147
A37: =VLOOKUP(C37,Sheet3!$A$1:$C$821,2,FALSE) -> Elementary Schools | B37: Electric | C37: DURYEAES | D37: Katy, TX | E37: 96423 | F37: 43952 | G37: 442944 | H37: 459840 | I37: 3.814477677 | J37: 35506.15 | K37: 36804.45 | L37: 3.65654964 | M37: 2684 | N37: 2456 | O37: -8.494783905
A38: =VLOOKUP(C38,Sheet3!$A$1:$C$821,2,FALSE) -> Administration | B38: Electric | C38: ELC1 | D38: Houston, TX | E38: 6832 | F38: 367 | G38: 40120 | H38: 32080 | I38: -20.03988036 | J38: 3269.47 | K38: 2907.26 | L38: -11.07855402 | M38: 231 | N38: 211 | O38: -8.658008658
A39: =VLOOKUP(C39,Sheet3!$A$1:$C$821,2,FALSE) -> Administration | B39: Electric | C39: ELC2 | D39: Houston, TX | E39: 4573 | F39: 367 | G39: 27199 | H39: 27967 | I39: 2.823633222 | J39: 2494.94 | K39: 2581.33 | L39: 3.462608319 | M39: 178 | N39: 187 | O39: 5.056179775
A40: =VLOOKUP(C40,Sheet3!$A$1:$C$821,2,FALSE) -> Administration | B40: Electric | C40: ELDRIDGETRANS | D40: Houston, TX | E40: 19256 | F40: 44044 | G40: 396096 | H40: 394752 | I40: -0.339311682 | J40: 23550.51 | K40: 24102.16 | L40: 2.342412118 | M40: 1169 | N40: 1103 | O40: -5.645851155
A41: =VLOOKUP(C41,Sheet3!$A$1:$C$821,2,FALSE) -> Elementary Schools | B41: Electric | C41: EMERYES | D41: Katy, TX | E41: 98438 | F41: 44044 | G41: 455040 | H41: 483080 | I41: 6.16209564 | J41: 36283.24 | K41: 36743.4 | L41: 1.268243961 | M41: 2801 | N41: 2324 | O41: -17.02963227
A42: =VLOOKUP(C42,Sheet3!$A$1:$C$821,2,FALSE) -> Elementary Schools | B42: Electric | C42: EMMOTTES | D42: Houston, TX | E42: 77394 | F42: 43952 | G42: 356736 | H42: 369792 | I42: 3.6598493 | J42: 29315.34 | K42: 29820.98 | L42: 1.724830754 | M42: 2287 | N42: 2003 | O42: -12.41801487
A43: =VLOOKUP(C43,Sheet3!$A$1:$C$821,2,FALSE) -> Administration | B43: Electric | C43: EXHIBITCENTERSCIENCERESOURCEC | D43: Cypress, TX | E43: 72198 | F43: 367 | G43: 499360 | H43: 409600 | I43: -17.97500801 | J43: 30402.54 | K43: 27059.12 | L43: -10.99717326 | M43: 1609 | N43: 1432 | O43: -11.0006215
A44: =VLOOKUP(C44,Sheet3!$A$1:$C$821,2,FALSE) -> Administration | B44: Electric | C44: EXHIBITCENTERTELGEAG | D44: Cypress, TX | E44: 33198 | F44: 367 | G44: 185955 | H44: 178987 | I44: -3.747143126 | J44: 10245.79 | K44: 9823.15 | L44: -4.125011346 | M44: 408 | N44: 350 | O44: -14.21568627
A45: =VLOOKUP(C45,Sheet3!$A$1:$C$821,2,FALSE) -> Administration | B45: Electric | C45: FALCONCOMPLEX | D45: Houston, TX | E45: 0 | F45: 367 | G45: 427584 | H45: 424512 | I45: -0.7184553211 | J45: 25380.39 | K45: 26016.35 | L45: 2.505714057 | M45: 1257 | N45: 1209 | O45: -3.818615752
A46: =VLOOKUP(C46,Sheet3!$A$1:$C$821,2,FALSE) -> Elementary Schools | B46: Electric | C46: FARNEYES | D46: Cypress, TX | E46: 95036 | F46: 367 | G46: 561120 | H46: 626400 | I46: 11.63387511 | J46: 41921.69 | K46: 48850.8 | L46: 16.52869911 | M46: 3059 | N46: 3196 | O46: 4.478587774
A47: =VLOOKUP(C47,Sheet3!$A$1:$C$821,2,FALSE) -> Elementary Schools | B47: Electric | C47: FIESTES | D47: Houston, TX | E47: 91621 | F47: 367 | G47: 424800 | H47: 424512 | I47: -0.06779661017 | J47: 30510.78 | K47: 30965.07 | L47: 1.488949152 | M47: 1998 | N47: 1878 | O47: -6.006006006
A48: =VLOOKUP(C48,Sheet3!$A$1:$C$821,2,FALSE) -> Administration | B48: Electric | C48: FOODPRODUCTIONCENTER | D48: Houston, TX | E48: 57684 | F48: 367 | G48: 2019386 | H48: 1989674 | I48: -1.471338318 | J48: 122317.44 | K48: 116656.67 | L48: -4.627933678 | M48: 4268 | N48: 4051 | O48: -5.084348641
A49: =VLOOKUP(C49,Sheet3!$A$1:$C$821,2,FALSE) -> Administration | B49: Electric | C49: FOODSERVICEWAREHOUSE | D49: Houston, TX | E49: 48487 | F49: 43952 | G49: 419136 | H49: 382272 | I49: -8.795235914 | J49: 24648.02 | K49: 23601.18 | L49: -4.247156567 | M49: 1176 | N49: 1112 | O49: -5.442176871
A50: =VLOOKUP(C50,Sheet3!$A$1:$C$821,2,FALSE) -> Elementary Schools | B50: Electric | C50: FRANCONEES | D50: Houston, TX | E50: 90518 | F50: 367 | G50: 483224 | H50: 496704 | I50: 2.789596543 | J50: 36757.18 | K50: 38327.76 | L50: 4.27285227 | M50: 2673 | N50: 2485 | O50: -7.033295922
A51: =VLOOKUP(C51,Sheet3!$A$1:$C$821,2,FALSE) -> Elementary Schools | B51: Electric | C51: FRAZIERES | D51: Houston, TX | E51: 85844 | F51: 367 | G51: 541551 | H51: 615558 | I51: 13.66574893 | J51: 40246.57 | K51: 46020.42 | L51: 14.34619149 | M51: 2523 | N51: 2677 | O51: 6.103844629
A52: =VLOOKUP(C52,Sheet3!$A$1:$C$821,2,FALSE) -> Elementary Schools | B52: Electric | C52: GLEASONES | D52: Houston, TX | E52: 91424 | F52: 367 | G52: 570816 | H52: 695520 | I52: 21.84661958 | J52: 39997.61 | K52: 47226 | L52: 18.07205481 | M52: 2684 | N52: 2600 | O52: -3.129657228
A53: =VLOOKUP(C53,Sheet3!$A$1:$C$821,2,FALSE) -> Middle Schools | B53: Electric | C53: GOODSONMS | D53: Cypress, TX | E53: 218801 | F53: 367 | G53: 1028307 | H53: 1066241 | I53: 3.688976152 | J53: 70203.42 | K53: 72030.9 | L53: 2.603121045 | M53: 4728 | N53: 4015 | O53: -15.08037225
A54: =VLOOKUP(C54,Sheet3!$A$1:$C$821,2,FALSE) -> Elementary Schools | B54: Electric | C54: HAIRGROVEES | D54: Houston, TX | E54: 85052 | F54: 367 | G54: 503040 | H54: 528384 | I54: 5.038167939 | J54: 36779.99 | K54: 37563.71 | L54: 2.130832553 | M54: 2576 | N54: 2189 | O54: -15.02329193
A55: =VLOOKUP(C55,Sheet3!$A$1:$C$821,2,FALSE) -> Elementary Schools | B55: Electric | C55: HAMILTONES | D55: Cypress, TX | E55: 89692 | F55: 44044 | G55: 368928 | H55: 389664 | I55: 5.620608899 | J55: 28246.26 | K55: 29657.81 | L55: 4.997298757 | M55: 2018 | N55: 1875 | O55: -7.086223984
A56: =VLOOKUP(C56,Sheet3!$A$1:$C$821,2,FALSE) -> Middle Schools | B56: Electric | C56: HAMILTONMS | D56: Cypress, TX | E56: 194726 | F56: 44044 | G56: 1490212 | H56: 1154623 | I56: -22.51954755 | J56: 90163.31 | K56: 74588.8 | L56: -17.27366708 | M56: 4647 | N56: 3486 | O56: -24.98386056
A57: =VLOOKUP(C57,Sheet3!$A$1:$C$821,2,FALSE) -> Elementary Schools | B57: Electric | C57: HANCOCKES | D57: Houston, TX | E57: 88795 | F57: 367 | G57: 514080 | H57: 504288 | I57: -1.904761905 | J57: 39713.34 | K57: 39670.15 | L57: -0.1087543883 | M57: 2909 | N57: 2624 | O57: -9.797181162
A58: =VLOOKUP(C58,Sheet3!$A$1:$C$821,2,FALSE) -> Elementary Schools | B58: Electric | C58: HEMMENWAYES | D58: Katy, TX | E58: 101091 | F58: 44044 | G58: 443904 | H58: 526464 | I58: 18.59861592 | J58: 38620.03 | K58: 42718.3 | L58: 10.61177322 | M58: 3224 | N58: 2892 | O58: -10.29776675
A59: =VLOOKUP(C59,Sheet3!$A$1:$C$821,2,FALSE) -> Elementary Schools | B59: Electric | C59: HOLBROOKES | D59: Houston, TX | E59: 99937 | F59: 367 | G59: 572352 | H59: 625344 | I59: 9.258638041 | J59: 44091.99 | K59: 45306.66 | L59: 2.754854113 | M59: 3169 | N59: 2602 | O59: -17.89207952
A60: =VLOOKUP(C60,Sheet3!$A$1:$C$821,2,FALSE) -> Elementary Schools | B60: Electric | C60: HOLMSLEYES | D60: Houston, TX | E60: 81704 | F60: 44044 | G60: 343296 | H60: 361536 | I60: 5.313199105 | J60: 26409.32 | K60: 28446.88 | L60: 7.715306566 | M60: 1867 | N60: 1882 | O60: 0.8034279593
A61: =VLOOKUP(C61,Sheet3!$A$1:$C$821,2,FALSE) -> Elementary Schools | B61: Electric | C61: HOOVERES | D61: Katy, TX | E61: 112519 | F61: 367 | G61: 419760 | H61: 486720 | I61: 15.95197256 | J61: 34086.99 | K61: 36565.23 | L61: 7.270339798 | M61: 2564 | N61: 2264 | O61: -11.70046802
A62: =VLOOKUP(C62,Sheet3!$A$1:$C$821,2,FALSE) -> Middle Schools | B62: Electric | C62: HOPPERMS | D62: Cypress, TX | E62: 226178 | F62: 367 | G62: 1198744 | H62: 1246703 | I62: 4.000770807 | J62: 85451.96 | K62: 84752.71 | L62: -0.8182960344 | M62: 5196 | N62: 4632 | O62: -10.85450346
A63: =VLOOKUP(C63,Sheet3!$A$1:$C$821,2,FALSE) -> Elementary Schools | B63: Electric | C63: HORNEES | D63: Houston, TX | E63: 87881 | F63: 367 | G63: 506304 | H63: 562752 | I63: 11.14903299 | J63: 36701.02 | K63: 40558.69 | L63: 10.51107026 | M63: 2501 | N63: 2408 | O63: -3.718512595
A64: =VLOOKUP(C64,Sheet3!$A$1:$C$821,2,FALSE) -> Administration | B64: Electric | C64: ISCA | D64: Houston, TX | E64: 132467 | F64: 367 | G64: 341520 | H64: 350640 | I64: 2.670414617 | J64: 23710.08 | K64: 24931.29 | L64: 5.150594178 | M64: 1524 | N64: 1464 | O64: -3.937007874
A65: =VLOOKUP(C65,Sheet3!$A$1:$C$821,2,FALSE) -> Administration | B65: Electric | C65: ISCB | D65: Houston, TX | E65: 0 | F65: 367 | G65: 308480 | H65: 332080 | I65: 7.650414938 | J65: 20275.59 | K65: 22524.26 | L65: 11.09052807 | M65: 1208 | N65: 1238 | O65: 2.483443709
A66: =VLOOKUP(C66,Sheet3!$A$1:$C$821,2,FALSE) -> Administration | B66: Electric | C66: ISCC | D66: Houston, TX | E66: 0 | F66: 367 | G66: 526960 | H66: 558240 | I66: 5.935934416 | J66: 32596.16 | K66: 35627.33 | L66: 9.299162846 | M66: 1751 | N66: 1785 | O66: 1.941747573
A67: =VLOOKUP(C67,Sheet3!$A$1:$C$821,2,FALSE) -> Administration | B67: Electric | C67: ISCC-EXLIGHT | D67: Houston, TX | E67: 0 | F67: 367 | G67: 3660 | H67: 3660 | I67: 0 | J67: 564.21 | K67: 451.23 | L67: -20.02445898 | M67: 0 | N67: 0 | O67: 0
A68: =VLOOKUP(C68,Sheet3!$A$1:$C$821,2,FALSE) -> Administration | B68: Electric | C68: ISCD | D68: Houston, TX | E68: 0 | F68: 367 | G68: 15480 | H68: 15800 | I68: 2.067183463 | J68: 1502.84 | K68: 1537.02 | L68: 2.274360544 | M68: 117 | N68: 114 | O68: -2.564102564
A69: =VLOOKUP(C69,Sheet3!$A$1:$C$821,2,FALSE) -> Administration | B69: Electric | C69: ISCDATACENTER | D69: Houston, TX | E69: 0 | F69: 367 | G69: 117288 | H69: 147469 | I69: 25.73238524 | J69: 6338.8 | K69: 7629.73 | L69: 20.3655266 | M69: 186 | N69: 224 | O69: 20.43010753
A70: =VLOOKUP(C70,Sheet3!$A$1:$C$821,2,FALSE) -> Administration | B70: Electric | C70: ISCSW | D70: Houston, TX | E70: 0 | F70: 367 | G70: 44153 | H70: 39892 | I70: -9.650533373 | J70: 2902.35 | K70: 2705.18 | L70: -6.793460472 | M70: 158 | N70: 141 | O70: -10.75949367
A71: =VLOOKUP(C71,Sheet3!$A$1:$C$821,2,FALSE) -> Administration | B71: Electric | C71: ISCW | D71: Houston, TX | E71: 35364 | F71: 367 | G71: 309504 | H71: 355584 | I71: 14.88833747 | J71: 21899.45 | K71: 25618.02 | L71: 16.98019813 | M71: 1467 | N71: 1528 | O71: 4.158145876
A72: =VLOOKUP(C72,Sheet3!$A$1:$C$821,2,FALSE) -> Administration | B72: Electric | C72: JARVISCENTRALPLANT | D72: Cypress, TX | E72: 12152 | F72: 367 | G72: 1750520 | H72: 2088742 | I72: 19.32123026 | J72: 136782.45 | K72: 155374.8 | L72: 13.59264292 | M72: 13128 | N72: 10517 | O72: -19.88878732
A73: =VLOOKUP(C73,Sheet3!$A$1:$C$821,2,FALSE) -> High Schools | B73: Electric | C73: JERSEYVILLAGEHS | D73: Houston, TX | E73: 513473 | F73: 43952 | G73: 2683551 | H73: 2733388 | I73: 1.857128857 | J73: 180223.04 | K73: 184182.73 | L73: 2.19710532 | M73: 11426 | N73: 10003 | O73: -12.45405216
A74: =VLOOKUP(C74,Sheet3!$A$1:$C$821,2,FALSE) -> Administration | B74: Electric | C74: JERSEYVILLAGESTADIUM | D74: Houston, TX | E74: 2385 | F74: 367 | G74: 23040 | H74: 13068 | I74: -43.28125 | J74: 4605.88 | K74: 1156.24 | L74: -74.89643673 | M74: 568 | N74: 1305 | O74: 129.7535211
A75: =VLOOKUP(C75,Sheet3!$A$1:$C$821,2,FALSE) -> Elementary Schools | B75: Electric | C75: JOWELLES | D75: Katy, TX | E75: 73726 | F75: 367 | G75: 308736 | H75: 322176 | I75: 4.353233831 | J75: 27059.96 | K75: 27394.79 | L75: 1.237363248 | M75: 2096 | N75: 1936 | O75: -7.633587786
A76: =VLOOKUP(C76,Sheet3!$A$1:$C$821,2,FALSE) -> Middle Schools | B76: Electric | C76: KAHLAMS | D76: Houston, TX | E76: 221601 | F76: 367 | G76: 1224164 | H76: 1290523 | I76: 5.420760617 | J76: 88478.56 | K76: 97539.98 | L76: 10.24137373 | M76: 5993 | N76: 5258 | O76: -12.26430836
A77: =VLOOKUP(C77,Sheet3!$A$1:$C$821,2,FALSE) -> Elementary Schools | B77: Electric | C77: KEITHES | D77: Cypress, TX | E77: 95518 | F77: 367 | G77: 448320 | H77: 483456 | I77: 7.837259101 | J77: 34815.22 | K77: 37267.94 | L77: 7.044964817 | M77: 2515 | N77: 2393 | O77: -4.850894632
A78: =VLOOKUP(C78,Sheet3!$A$1:$C$821,2,FALSE) -> Elementary Schools | B78: Electric | C78: KIRKES | D78: Houston, TX | E78: 93897 | F78: 367 | G78: 567648 | H78: 603360 | I78: 6.29122273 | J78: 43363.09 | K78: 45466.75 | L78: 4.851268671 | M78: 3211 | N78: 2845 | O78: -11.39831828
A79: =VLOOKUP(C79,Sheet3!$A$1:$C$821,2,FALSE) -> Middle Schools | B79: Electric | C79: LABAYMS | D79: Houston, TX | E79: 190510 | F79: 43952 | G79: 1176724 | H79: 871108 | I79: -25.97176568 | J79: 72560.59 | K79: 61169.35 | L79: -15.69893519 | M79: 3470 | N79: 3675 | O79: 5.90778098
A80: =VLOOKUP(C80,Sheet3!$A$1:$C$821,2,FALSE) -> Elementary Schools | B80: Electric | C80: LAMKINES | D80: Cypress, TX | E80: 113622 | F80: 43956 | G80: 475920 | H80: 479520 | I80: 0.756429652 | J80: 35650.06 | K80: 36337.75 | L80: 1.929000961 | M80: 2526 | N80: 2310 | O80: -8.551068884
A81: =VLOOKUP(C81,Sheet3!$A$1:$C$821,2,FALSE) -> High Schools | B81: Electric | C81: LANGHAMCREEKHS | D81: Houston, TX | E81: 535686 | F81: 367 | G81: 2104786 | H81: 1990916 | I81: -5.410051188 | J81: 135608.87 | K81: 133167.02 | L81: -1.80065655 | M81: 7950 | N81: 8130 | O81: 2.264150943
A82: =VLOOKUP(C82,Sheet3!$A$1:$C$821,2,FALSE) -> Administration | B82: Electric | C82: LANGHAMCREEKRETENTIONPOND | D82: Houston, TX | E82: 0 | F82: 367 | G82: 1536 | H82: 1920 | I82: 25 | J82: 1431.22 | K82: 1663.68 | L82: 16.24208717 | M82: 153 | N82: 205 | O82: 33.9869281
A83: =VLOOKUP(C83,Sheet3!$A$1:$C$821,2,FALSE) -> Elementary Schools | B83: Electric | C83: LEEES | D83: Houston, TX | E83: 95352 | F83: 367 | G83: 677184 | H83: 589056 | I83: -13.01389283 | J83: 45100.85 | K83: 43477.4 | L83: -3.599599564 | M83: 2779 | N83: 2659 | O83: -4.318100036
A84: =VLOOKUP(C84,Sheet3!$A$1:$C$821,2,FALSE) -> Elementary Schools | B84: Electric | C84: LIEDERES | D84: Houston, TX | E84: 88406 | F84: 367 | G84: 452448 | H84: 455904 | I84: 0.7638446849 | J84: 34521.16 | K84: 35792.37 | L84: 3.682408123 | M84: 2410 | N84: 2344 | O84: -2.738589212
A85: =VLOOKUP(C85,Sheet3!$A$1:$C$821,2,FALSE) -> Elementary Schools | B85: Electric | C85: LOWERYES | D85: Houston, TX | E85: 78614 | F85: 43956 | G85: 471552 | H85: 557184 | I85: 18.15960912 | J85: 38992.08 | K85: 41134.36 | L85: 5.494141374 | M85: 3134 | N85: 2533 | O85: -19.1767709
A86: =VLOOKUP(C86,Sheet3!$A$1:$C$821,2,FALSE) -> Administration | B86: Electric | C86: MAINTENANCEOPER | D86: Houston, TX | E86: 36679 | F86: 43952 | G86: 528000 | H86: 450048 | I86: -14.76363636 | J86: 32869.65 | K86: 28937.47 | L86: -11.96295062 | M86: 1797 | N86: 1462 | O86: -18.64218141
A87: =VLOOKUP(C87,Sheet3!$A$1:$C$821,2,FALSE) -> Elementary Schools | B87: Electric | C87: MATZKEMILLSES | D87: Houston, TX | E87: 124682 | F87: 43466 | G87: 504384 | H87: 511488 | I87: 1.408450704 | J87: 35693.06 | K87: 35388.36 | L87: -0.8536673516 | M87: 2271 | N87: 2004 | O87: -11.75693527
A88: =VLOOKUP(C88,Sheet3!$A$1:$C$821,2,FALSE) -> Elementary Schools | B88: Electric | C88: MCFEEES | D88: Katy, TX | E88: 105539 | F88: 367 | G88: 555276 | H88: 534279 | I88: -3.781362782 | J88: 42796.02 | K88: 39665.56 | L88: -7.31483909 | M88: 2404 | N88: 2083 | O88: -13.35274542
A89: =VLOOKUP(C89,Sheet3!$A$1:$C$821,2,FALSE) -> Elementary Schools | B89: Electric | C89: METCALFES | D89: Houston, TX | E89: 85120 | F89: 43956 | G89: 374688 | H89: 384192 | I89: 2.536510377 | J89: 30109.35 | K89: 31618.26 | L89: 5.011433326 | M89: 2302 | N89: 2201 | O89: -4.38748914
A90: =VLOOKUP(C90,Sheet3!$A$1:$C$821,2,FALSE) -> Elementary Schools | B90: Electric | C90: MILLSAPES | D90: Cypress, TX | E90: 77324 | F90: 367 | G90: 414528 | H90: 421824 | I90: 1.760074108 | J90: 32897.79 | K90: 33365.03 | L90: 1.420277775 | M90: 2502 | N90: 2219 | O90: -11.31095124
A91: =VLOOKUP(C91,Sheet3!$A$1:$C$821,2,FALSE) -> Administration | B91: Electric | C91: MILLSAPNATURETRAIL | D91: Cypress, TX | E91: 1121 | F91: 367 | G91: 1074 | H91: 2132 | I91: 98.51024209 | J91: 106.86 | K91: 166.91 | L91: 56.19502152 | M91: 9 | N91: 10 | O91: 11.11111111
A92: =VLOOKUP(C92,Sheet3!$A$1:$C$821,2,FALSE) -> Administration | B92: Electric | C92: MILLSAPROPES | D92: Cypress, TX | E92: 924 | F92: 367 | G92: 2482 | H92: 2494 | I92: 0.4834810637 | J92: 199.38 | K92: 190.28 | L92: -4.564148861 | M92: 10 | N92: 8 | O92: -20
A93: =VLOOKUP(C93,Sheet3!$A$1:$C$821,2,FALSE) -> Elementary Schools | B93: Electric | C93: MOOREES | D93: Houston, TX | E93: 83063 | F93: 43952 | G93: 336384 | H93: 344448 | I93: 2.397260274 | J93: 26006.58 | K93: 25486.74 | L93: -1.998878745 | M93: 1764 | N93: 1560 | O93: -11.56462585
A94: =VLOOKUP(C94,Sheet3!$A$1:$C$821,2,FALSE) -> Elementary Schools | B94: Electric | C94: OWENSES | D94: Houston, TX | E94: 85590 | F94: 43952 | G94: 473088 | H94: 541056 | I94: 14.36688312 | J94: 37693.83 | K94: 42261.96 | L94: 12.11903911 | M94: 2864 | N94: 2752 | O94: -3.910614525
A95: =VLOOKUP(C95,Sheet3!$A$1:$C$821,2,FALSE) -> Elementary Schools | B95: Electric | C95: POPEES | D95: Cypress, TX | E95: 112970 | F95: 367 | G95: 476352 | H95: 491136 | I95: 3.103587263 | J95: 32939.11 | K95: 35717.77 | L95: 8.43574705 | M95: 2151 | N95: 2138 | O95: -0.6043700604
A96: =VLOOKUP(C96,Sheet3!$A$1:$C$821,2,FALSE) -> Elementary Schools | B96: Electric | C96: POSTES | D96: Houston, TX | E96: 104852 | F96: 367 | G96: 526656 | H96: 705216 | I96: 33.90448414 | J96: 40533.42 | K96: 49182.09 | L96: 21.33713365 | M96: 2889 | N96: 2747 | O96: -4.915195569
A97: =VLOOKUP(C97,Sheet3!$A$1:$C$821,2,FALSE) -> Elementary Schools | B97: Electric | C97: POSTMAES | D97: Cypress, TX | E97: 98920 | F97: 367 | G97: 500544 | H97: 523776 | I97: 4.641350211 | J97: 37563.38 | K97: 39253.34 | L97: 4.498956164 | M97: 2736 | N97: 2465 | O97: -9.90497076
A98: =VLOOKUP(C98,Sheet3!$A$1:$C$821,2,FALSE) -> Administration | B98: Electric | C98: PRIDGEONSTADIUM | D98: Houston, TX | E98: 86181 | F98: 367 | G98: 405216 | H98: 394848 | I98: -2.558635394 | J98: 28383.51 | K98: 28700.09 | L98: 1.115365929 | M98: 1719 | N98: 1719 | O98: 0
A99: =VLOOKUP(C99,Sheet3!$A$1:$C$821,2,FALSE) -> Administration | B99: Electric | C99: RECYCLECENTER | D99: Houston, TX | E99: 0 | F99: 367 | G99: 8160 | H99: 4712 | I99: -42.25490196 | J99: 909.85 | K99: 819.49 | L99: -9.931307358 | M99: 73 | N99: 77 | O99: 5.479452055
A100: =VLOOKUP(C100,Sheet3!$A$1:$C$821,2,FALSE) -> Elementary Schools | B100: Electric | C100: REEDES | D100: Houston, TX | E100: 90012 | F100: 367 | G100: 427392 | H100: 463488 | I100: 8.445642408 | J100: 33713.24 | K100: 37091.8 | L100: 10.02146338 | M100: 2491 | N100: 2500 | O100: 0.3613006825
A101: =VLOOKUP(C101,Sheet3!$A$1:$C$821,2,FALSE) -> Elementary Schools | B101: Electric | C101: RENNELLES | D101: Cypress, TX | E101: 113621 | F101: 43678 | G101: 288532 | H101: 316928 | I101: 9.841542706 | J101: 18862.17 | K101: 20645.62 | L101: 9.455168732 | M101: 1128 | N101: 1042 | O101: -7.624113475
A102: =VLOOKUP(C102,Sheet3!$A$1:$C$821,2,FALSE) -> Elementary Schools | B102: Electric | C102: ROBINSONES | D102: Katy, TX | E102: 98532 | F102: 43956 | G102: 458496 | H102: 497664 | I102: 8.542713568 | J102: 36700.09 | K102: 38413.07 | L102: 4.66750899 | M102: 2772 | N102: 2469 | O102: -10.93073593
A103: =VLOOKUP(C103,Sheet3!$A$1:$C$821,2,FALSE) -> Elementary Schools | B103: Electric | C103: ROBISONES | D103: Cypress, TX | E103: 93882 | F103: 43952 | G103: 373440 | H103: 368160 | I103: -1.413881748 | J103: 23757.62 | K103: 24577.23 | L103: 3.449882606 | M103: 1339 | N103: 1315 | O103: -1.792382375
A104: =VLOOKUP(C104,Sheet3!$A$1:$C$821,2,FALSE) -> Middle Schools | B104: Electric | C104: SALYARDSMS | D104: Cypress, TX | E104: 242116 | F104: 43952 | G104: 1163277 | H104: 1062826 | I104: -8.635174597 | J104: 78893.56 | K104: 73906.64 | L104: -6.321073609 | M104: 5809 | N104: 4645 | O104: -20.03787227
A105: =VLOOKUP(C105,Sheet3!$A$1:$C$821,2,FALSE) -> Elementary Schools | B105: Electric | C105: SAMPSONES | D105: Cypress, TX | E105: 96096 | F105: 367 | G105: 520128 | H105: 544608 | I105: 4.706533776 | J105: 40276.99 | K105: 43699.72 | L105: 8.497978623 | M105: 2992 | N105: 2946 | O105: -1.537433155
A106: =VLOOKUP(C106,Sheet3!$A$1:$C$821,2,FALSE) -> Administration | B106: Electric | C106: SATELLITECOLDFOODWAREHOUSE | D106: Cypress, TX | E106: 22020 | F106: 367 | G106: 805440 | H106: 781056 | I106: -3.027413588 | J106: 44933.93 | K106: 44211.09 | L106: -1.608673001 | M106: 1907 | N106: 1739 | O106: -8.809648663
A107: =VLOOKUP(C107,Sheet3!$A$1:$C$821,2,FALSE) -> Elementary Schools | B107: Electric | C107: SHERIDANES | D107: Katy, TX | E107: 92874 | F107: 44044 | G107: 565248 | H107: 537600 | I107: -4.891304348 | J107: 42211.72 | K107: 42132.14 | L107: -0.1885258407 | M107: 3033 | N107: 2754 | O107: -9.198813056
A108: =VLOOKUP(C108,Sheet3!$A$1:$C$821,2,FALSE) -> Middle Schools | B108: Electric | C108: SMITHMS | D108: Cypress, TX | E108: 233159 | F108: 44044 | G108: 745920 | H108: 702720 | I108: -5.791505792 | J108: 49484.33 | K108: 48320.02 | L108: -2.352886257 | M108: 2938 | N108: 2687 | O108: -8.543226685
A109: =VLOOKUP(C109,Sheet3!$A$1:$C$821,2,FALSE) -> Middle Schools | B109: Electric | C109: SPILLANEMS | D109: Cypress, TX | E109: 235889 | F109: 367 | G109: 979263 | H109: 1021719 | I109: 4.335505375 | J109: 61976.19 | K109: 63128.87 | L109: 1.859875543 | M109: 2978 | N109: 2946 | O109: -1.074546676
A110: =VLOOKUP(C110,Sheet3!$A$1:$C$821,2,FALSE) -> Elementary Schools | B110: Electric | C110: SWENKEES | D110: Cypress, TX | E110: 107914 | F110: 367 | G110: 533520 | H110: 541440 | I110: 1.484480432 | J110: 38831.34 | K110: 42371.47 | L110: 9.116682556 | M110: 2700 | N110: 2758 | O110: 2.148148148
A111: =VLOOKUP(C111,Sheet3!$A$1:$C$821,2,FALSE) -> Administration | B111: Electric | C111: TELGETRANS | D111: Cypress, TX | E111: 19649 | F111: 367 | G111: 182480 | H111: 187640 | I111: 2.827707146 | J111: 11508.22 | K111: 12416.18 | L111: 7.889664953 | M111: 636 | N111: 652 | O111: 2.51572327
A112: =VLOOKUP(C112,Sheet3!$A$1:$C$821,2,FALSE) -> Middle Schools | B112: Electric | C112: THORNTONMS | D112: Katy, TX | E112: 202739 | F112: 44044 | G112: 1107752 | H112: 1023568 | I112: -7.599534914 | J112: 73035.39 | K112: 69182.54 | L112: -5.275319266 | M112: 4548 | N112: 4230 | O112: -6.992084433
A113: =VLOOKUP(C113,Sheet3!$A$1:$C$821,2,FALSE) -> Elementary Schools | B113: Electric | C113: TIPPSES | D113: Houston, TX | E113: 101727 | F113: 367 | G113: 566295 | H113: 618131 | I113: 9.153533053 | J113: 41981.24 | K113: 44580.28 | L113: 6.19095577 | M113: 2497 | N113: 2502 | O113: 0.2002402883
A114: =VLOOKUP(C114,Sheet3!$A$1:$C$821,2,FALSE) -> Middle Schools | B114: Electric | C114: TRUITTMS | D114: Houston, TX | E114: 209274 | F114: 43952 | G114: 946205 | H114: 855366 | I114: -9.600350875 | J114: 62032.07 | K114: 57077.57 | L114: -7.986997693 | M114: 3849 | N114: 3460 | O114: -10.10652117
A115: =VLOOKUP(C115,Sheet3!$A$1:$C$821,2,FALSE) -> Elementary Schools | B115: Electric | C115: WALKERES | D115: Katy, TX | E115: 98321 | F115: 367 | G115: 680381 | H115: 565284 | I115: -16.91655117 | J115: 46303.04 | K115: 45171.95 | L115: -2.442798572 | M115: 2447 | N115: 2477 | O115: 1.225991009
A116: =VLOOKUP(C116,Sheet3!$A$1:$C$821,2,FALSE) -> Elementary Schools | B116: Electric | C116: WARNERES | D116: Cypress, TX | E116: 98451 | F116: 44044 | G116: 315706 | H116: 362492 | I116: 14.81948395 | J116: 21566.29 | K116: 23415.66 | L116: 8.575281145 | M116: 1202 | N116: 1264 | O116: 5.158069884
A117: =VLOOKUP(C117,Sheet3!$A$1:$C$821,2,FALSE) -> Middle Schools | B117: Electric | C117: WATKINSMS | D117: Houston, TX | E117: 220237 | F117: 44044 | G117: 1041630 | H117: 1080092 | I117: 3.692481975 | J117: 69686.99 | K117: 71847.04 | L117: 3.099646003 | M117: 4328 | N117: 3700 | O117: -14.51016636
A118: =VLOOKUP(C118,Sheet3!$A$1:$C$821,2,FALSE) -> Elementary Schools | B118: Electric | C118: WELLSES | D118: Cypress, TX | E118: 124414 | F118: 44044 | G118: 551040 | H118: 587520 | I118: 6.620209059 | J118: 41666.2 | K118: 43911.45 | L118: 5.388660353 | M118: 2919 | N118: 2727 | O118: -6.577595067
A119: =VLOOKUP(C119,Sheet3!$A$1:$C$821,2,FALSE) -> Administration | B119: Electric | C119: WESTGREENAGSCIENCECENTER | D119: Cypress, TX | E119: 20124 | F119: 367 | G119: 59904 | H119: 41664 | I119: -30.44871795 | J119: 3848.1 | K119: 2699.72 | L119: -29.84277955 | M119: 206 | N119: 131 | O119: -36.40776699
A120: =VLOOKUP(C120,Sheet3!$A$1:$C$821,2,FALSE) -> Administration | B120: Electric | C120: WESTGREENTRANS | D120: Cypress, TX | E120: 45340 | F120: 367 | G120: 269568 | H120: 273408 | I120: 1.424501425 | J120: 16697.72 | K120: 17330.1 | L120: 3.787223645 | M120: 885 | N120: 847 | O120: -4.293785311
A121: =VLOOKUP(C121,Sheet3!$A$1:$C$821,2,FALSE) -> Elementary Schools | B121: Electric | C121: WILLBERNES | D121: Houston, TX | E121: 89993 | F121: 367 | G121: 449568 | H121: 434304 | I121: -3.395259449 | J121: 32181.53 | K121: 33011.05 | L121: 2.577627602 | M121: 2134 | N121: 2102 | O121: -1.499531396
A122: =VLOOKUP(C122,Sheet3!$A$1:$C$821,2,FALSE) -> Elementary Schools | B122: Electric | C122: WILSONES | D122: Houston, TX | E122: 84992 | F122: 367 | G122: 467328 | H122: 499968 | I122: 6.984387839 | J122: 36525.44 | K122: 36318.06 | L122: -0.5677686566 | M122: 2781 | N122: 2168 | O122: -22.04243078
A123: =VLOOKUP(C123,Sheet3!$A$1:$C$821,2,FALSE) -> Special Schools | B123: Electric | C123: WINDFERNANNEX | D123: Houston, TX | E123: 59400 | F123: 43952 | G123: 405888 | H123: 379312 | I123: -6.547619048 | J123: 27058.44 | K123: 25156.73 | L123: -7.028158312 | M123: 1665 | N123: 1459 | O123: -12.37237237
A124: =VLOOKUP(C124,Sheet3!$A$1:$C$821,2,FALSE) -> Special Schools | B124: Electric | C124: WINDFERNHS | D124: Houston, TX | E124: 50022 | F124: 367 | G124: 297590 | H124: 340608 | I124: 14.45545885 | J124: 23818.6 | K124: 26674.56 | L124: 11.99046124 | M124: 1851 | N124: 1753 | O124: -5.29443544
A125: =VLOOKUP(C125,Sheet3!$A$1:$C$821,2,FALSE) -> Elementary Schools | B125: Electric | C125: WOODARDES | D125: Cypress, TX | E125: 116974 | F125: 44044 | G125: 525600 | H125: 541440 | I125: 3.01369863 | J125: 41248.91 | K125: 40704.92 | L125: -1.318798485 | M125: 2981 | N125: 2543 | O125: -14.69305602
A126: =VLOOKUP(C126,Sheet3!$A$1:$C$821,2,FALSE) -> Elementary Schools | B126: Electric | C126: YEAGERES | D126: Houston, TX | E126: 81794 | F126: 367 | G126: 483840 | H126: 473184 | I126: -2.202380952 | J126: 38138.12 | K126: 35326.02 | L126: -7.373462562 | M126: 2904 | N126: 2202 | O126: -24.17355372
A127: =VLOOKUP(C127,Sheet3!$A$1:$C$821,2,FALSE) -> Elementary Schools | B127: Electric | C127: ADAM-ES | D127: Houston, TX | E127: 103177 | F127: 367 | G127: 379440 | H127: 467280 | I127: 23.14990512 | J127: 33544.4 | K127: 37007.89 | L127: 10.32509152 | M127: 2606 | N127: 2167 | O127: -16.8457406
A128: =VLOOKUP(C128,Sheet3!$A$1:$C$821,2,FALSE) -> Special Schools | B128: Electric | C128: ALCABC | D128: Houston, TX | E128: 56061 | F128: 367 | G128: 255936 | H128: 281088 | I128: 9.827456864 | J128: 21217.16 | K128: 25424.87 | L128: 19.83163628 | M128: 1670 | N128: 1735 | O128: 3.892215569
A129: =VLOOKUP(C129,Sheet3!$A$1:$C$821,2,FALSE) -> Special Schools | B129: Electric | C129: ALCWEST | D129: Katy, TX | E129: 50839 | F129: 367 | G129: 297792 | H129: 316992 | I129: 6.447453256 | J129: 18878.05 | K129: 21588.67 | L129: 14.35858047 | M129: 975 | N129: 1055 | O129: 8.205128205
A130: =VLOOKUP(C130,Sheet3!$A$1:$C$821,2,FALSE) -> Elementary Schools | B130: Electric | C130: ANDREES | D130: Cypress, TX | E130: 100156 | F130: 43952 | G130: 420288 | H130: 504384 | I130: 20.00913659 | J130: 34583.57 | K130: 37878.24 | L130: 9.526691432 | M130: 2480 | N130: 2118 | O130: -14.59677419
A131: =VLOOKUP(C131,Sheet3!$A$1:$C$821,2,FALSE) -> Middle Schools | B131: Electric | C131: ANTHONYMS | D131: Cypress, TX | E131: 244123 | F131: 367 | G131: 741226 | H131: 922344 | I131: 24.43492268 | J131: 61221.65 | K131: 67961.44 | L131: 11.00883429 | M131: 4444 | N131: 4044 | O131: -9.00090009
A132: =VLOOKUP(C132,Sheet3!$A$1:$C$821,2,FALSE) -> Middle Schools | B132: Electric | C132: ARAGONMS | D132: Houston, TX | E132: 219821 | F132: 367 | G132: 817126 | H132: 1064937 | I132: 30.32714661 | J132: 68270.3 | K132: 85767 | L132: 25.62856762 | M132: 4606 | N132: 4833 | O132: 4.92835432
A133: =VLOOKUP(C133,Sheet3!$A$1:$C$821,2,FALSE) -> Middle Schools | B133: Electric | C133: ARNOLDMS | D133: Cypress, TX | E133: 210699 | F133: 44409 | G133: 985104 | H133: 1135255 | I133: 15.24214702 | J133: 60300.36 | K133: 75958.34 | L133: 25.96664431 | M133: 2779 | N133: 2993 | O133: 7.700611731
A134: =VLOOKUP(C134,Sheet3!$A$1:$C$821,2,FALSE) -> Elementary Schools | B134: Electric | C134: AULTES | D134: Cypress, TX | E134: 91912 | F134: 43952 | G134: 228096 | H134: 274560 | I134: 20.37037037 | J134: 19698.26 | K134: 22938.99 | L134: 16.4518592 | M134: 1455 | N134: 1431 | O134: -1.649484536
A135: =VLOOKUP(C135,Sheet3!$A$1:$C$821,2,FALSE) -> Elementary Schools | B135: Electric | C135: BANEES | D135: Houston, TX | E135: 106804 | F135: 367 | G135: 388032 | H135: 504192 | I135: 29.93567541 | J135: 32924.47 | K135: 40925.17 | L135: 24.30016337 | M135: 2365 | N135: 2371 | O135: 0.2536997886
A136: =VLOOKUP(C136,Sheet3!$A$1:$C$821,2,FALSE) -> Elementary Schools | B136: Electric | C136: BANGES | D136: Houston, TX | E136: 89313 | F136: 44044 | G136: 279360 | H136: 387936 | I136: 38.86597938 | J136: 22990.81 | K136: 30397.63 | L136: 32.21643779 | M136: 1650 | N136: 1754 | O136: 6.303030303
A137: =VLOOKUP(C137,Sheet3!$A$1:$C$821,2,FALSE) -> Administration | B137: Electric | C137: BARKERTRANS | D137: Houston, TX | E137: 22677 | F137: 367 | G137: 133536 | H137: 151584 | I137: 13.51545651 | J137: 9216.69 | K137: 11216.04 | L137: 21.69271181 | M137: 563 | N137: 612 | O137: 8.703374778
A138: =VLOOKUP(C138,Sheet3!$A$1:$C$821,2,FALSE) -> Administration | B138: Electric | C138: BERRYCENTER | D138: Cypress, TX | E138: 491434 | F138: 367 | G138: 2059197 | H138: 2164301 | I138: 5.10412554 | J138: 150915.95 | K138: 157060.07 | L138: 4.071219775 | M138: 6960 | N138: 7288 | O138: 4.712643678
A139: =VLOOKUP(C139,Sheet3!$A$1:$C$821,2,FALSE) -> Elementary Schools | B139: Electric | C139: BIRKESES | D139: Houston, TX | E139: 104952 | F139: 44044 | G139: 489408 | H139: 701376 | I139: 43.31110239 | J139: 38130.88 | K139: 53581.3 | L139: 40.51944251 | M139: 2665 | N139: 3032 | O139: 13.77110694
A140: =VLOOKUP(C140,Sheet3!$A$1:$C$821,2,FALSE) -> Elementary Schools | B140: Electric | C140: BLACKES | D140: Cypress, TX | E140: 101992 | F140: 44409 | G140: 352896 | H140: 460800 | I140: 30.57671382 | J140: 30451.93 | K140: 38382.39 | L140: 26.04255297 | M140: 2283 | N140: 2383 | O140: 4.380201489
A141: =VLOOKUP(C141,Sheet3!$A$1:$C$821,2,FALSE) -> Middle Schools | B141: Electric | C141: BLEYLMS | D141: Houston, TX | E141: 234294 | F141: 44409 | G141: 831568 | H141: 846329 | I141: 1.77508033 | J141: 61410.25 | K141: 65160.21 | L141: 6.106407318 | M141: 3544 | N141: 3018 | O141: -14.84198646
A142: =VLOOKUP(C142,Sheet3!$A$1:$C$821,2,FALSE) -> Administration | B142: Electric | C142: BRADLEYPOLICESTATION | D142: Cypress, TX | E142: 19680 | F142: 43952 | G142: 264192 | H142: 284544 | I142: 7.703488372 | J142: 15412.63 | K142: 17424.94 | L142: 13.05624024 | M142: 691 | N142: 681 | O142: -1.447178003
A143: Special Schools | B143: Electric | C143: BRAUTIGAMCENTER | D143: Houston, TX | E143: 79751 | F143: 44409 | G143: 370450 | H143: 415012 | I143: 12.02915373 | J143: 32697.5 | K143: 36080.51 | L143: 10.34638734 | M143: 2441 | N143: 2207 | O143: -9.58623515
A144: =VLOOKUP(C144,Sheet3!$A$1:$C$821,2,FALSE) -> High Schools | B144: Electric | C144: BRIDGELANDHS | D144: Cypress, TX | E144: 579612 | F144: 44409 | G144: 2099955 | H144: 2428646 | I144: 15.65228779 | J144: 158457.77 | K144: 189914.99 | L144: 19.8521158 | M144: 11327 | N144: 11910 | O144: 5.146993908
A145: =VLOOKUP(C145,Sheet3!$A$1:$C$821,2,FALSE) -> Middle Schools | B145: Electric | C145: CAMPBELLMS | D145: Houston, TX | E145: 232217 | F145: 44409 | G145: 1132438 | H145: 943954 | I145: -16.64409001 | J145: 76839.11 | K145: 75389.6 | L145: -1.886422162 | M145: 5316 | N145: 3944 | O145: -25.80887886
A146: =VLOOKUP(C146,Sheet3!$A$1:$C$821,2,FALSE) -> Administration | B146: Electric | C146: CFISDNATATORIUM | D146: Houston, TX | E146: 49471 | F146: 367 | G146: 1903765 | H146: 1167906 | I146: -38.65282742 | J146: 113850.91 | K146: 84687.24 | L146: -25.61566702 | M146: 4434 | N146: 4058 | O146: -8.47992783
A147: =VLOOKUP(C147,Sheet3!$A$1:$C$821,2,FALSE) -> Middle Schools | B147: Electric | C147: COOKMS | D147: Houston, TX | E147: 205797 | F147: 43952 | G147: 638267 | H147: 830457 | I147: 30.11122305 | J147: 49977.01 | K147: 62429.9 | L147: 24.91723695 | M147: 3683 | N147: 3727 | O147: 1.194678251
A148: =VLOOKUP(C148,Sheet3!$A$1:$C$821,2,FALSE) -> Elementary Schools | B148: Electric | C148: COPELANDES | D148: Houston, TX | E148: 91324 | F148: 44409 | G148: 389088 | H148: 372096 | I148: -4.367135455 | J148: 32772.75 | K148: 29487.54 | L148: -10.02421219 | M148: 2544 | N148: 1762 | O148: -30.73899371
A149: =VLOOKUP(C149,Sheet3!$A$1:$C$821,2,FALSE) -> High Schools | B149: Electric | C149: CY-CREEKHS | D149: Houston, TX | E149: 528099 | F149: 44409 | G149: 2066960 | H149: 2561196 | I149: 23.91125131 | J149: 157934.55 | K149: 191883.44 | L149: 21.49554357 | M149: 9119 | N149: 9942 | O149: 9.025112403
A150: =VLOOKUP(C150,Sheet3!$A$1:$C$821,2,FALSE) -> Administration | B150: Electric | C150: CY-FAIRCOMPLEXRETENTIONPOND | D150: Cypress, TX | E150: 0 | F150: 367 | G150: 707 | H150: 1279 | I150: 80.90523338 | J150: 647.13 | K150: 572.86 | L150: -11.47682846 | M150: 77 | N150: 59 | O150: -23.37662338
A151: =VLOOKUP(C151,Sheet3!$A$1:$C$821,2,FALSE) -> High Schools | B151: Electric | C151: CY-FAIRHS | D151: Cypress, TX | E151: 507380 | F151: 44409 | G151: 2665766 | H151: 2964097 | I151: 11.19119233 | J151: 178840.82 | K151: 208523.38 | L151: 16.5971952 | M151: 8764 | N151: 11276 | O151: 28.66271109
A152: =VLOOKUP(C152,Sheet3!$A$1:$C$821,2,FALSE) -> Administration | B152: Electric | C152: CY-FAIRHS-BALLFIELD | D152: Cypress, TX | E152: 0 | F152: 367 | G152: 17376 | H152: 34365 | I152: 97.77279006 | J152: 6014.24 | K152: 11873.1 | L152: 97.41646492 | M152: 681 | N152: 1339 | O152: 96.6226138
A153: =VLOOKUP(C153,Sheet3!$A$1:$C$821,2,FALSE) -> High Schools | B153: Electric | C153: CY-FALLSHS | D153: Houston, TX | E153: 565245 | F153: 44409 | G153: 1929977 | H153: 2150995 | I153: 11.45184632 | J153: 136580.89 | K153: 148399.12 | L153: 8.652916232 | M153: 7146 | N153: 6994 | O153: -2.127064092
A154: =VLOOKUP(C154,Sheet3!$A$1:$C$821,2,FALSE) -> High Schools | B154: Electric | C154: CY-LAKESHS | D154: Katy, TX | E154: 514068 | F154: 43952 | G154: 2703196 | H154: 2566491 | I154: -5.057161967 | J154: 171388.58 | K154: 185252.92 | L154: 8.089418793 | M154: 9969 | N154: 8717 | O154: -12.55893269
A155: =VLOOKUP(C155,Sheet3!$A$1:$C$821,2,FALSE) -> High Schools | B155: Electric | C155: CY-PARKHS | D155: Cypress, TX | E155: 764731 | F155: 367 | G155: 2848241 | H155: 3439827 | I155: 20.77022274 | J155: 219136.23 | K155: 264470.03 | L155: 20.68749654 | M155: 13593 | N155: 15944 | O155: 17.29566689
A156: =VLOOKUP(C156,Sheet3!$A$1:$C$821,2,FALSE) -> High Schools | B156: Electric | C156: CY-RANCHHS | D156: Cypress, TX | E156: 527481 | F156: 44409 | G156: 2480139 | H156: 3121686 | I156: 25.86738082 | J156: 212318.86 | K156: 236863.02 | L156: 11.560047 | M156: 17800 | N156: 13477 | O156: -24.28651685
A157: =VLOOKUP(C157,Sheet3!$A$1:$C$821,2,FALSE) -> High Schools | B157: Electric | C157: CY-RIDGEHS | D157: Houston, TX | E157: 502564 | F157: 44044 | G157: 2104756 | H157: 2524740 | I157: 19.95404693 | J157: 142655.67 | K157: 178405.06 | L157: 25.05991525 | M157: 8765 | N157: 9507 | O157: 8.465487735
A158: =VLOOKUP(C158,Sheet3!$A$1:$C$821,2,FALSE) -> High Schools | B158: Electric | C158: CY-SPRINGSHS | D158: Cypress, TX | E158: 478615 | F158: 44044 | G158: 2169325 | H158: 2283888 | I158: 5.281043643 | J158: 138243.82 | K158: 150069.58 | L158: 8.554277508 | M158: 8453 | N158: 7782 | O158: -7.938010174
A159: =VLOOKUP(C159,Sheet3!$A$1:$C$821,2,FALSE) -> High Schools | B159: Electric | C159: CY-WOODSHS | D159: Cypress, TX | E159: 501359 | F159: 44409 | G159: 1387201 | H159: 1717099 | I159: 23.78155725 | J159: 93186.84 | K159: 116732.84 | L159: 25.26751631 | M159: 5721 | N159: 5820 | O159: 1.730466702
A160: =VLOOKUP(C160,Sheet3!$A$1:$C$821,2,FALSE) -> Elementary Schools | B160: Electric | C160: DANISHES | D160: Houston, TX | E160: 98052 | F160: 43952 | G160: 446976 | H160: 571680 | I160: 27.89948454 | J160: 37811.44 | K160: 43722.48 | L160: 15.63294072 | M160: 2320 | N160: 2295 | O160: -1.077586207
A161: =VLOOKUP(C161,Sheet3!$A$1:$C$821,2,FALSE) -> Middle Schools | B161: Electric | C161: DEANMS | D161: Houston, TX | E161: 222788 | F161: 44044 | G161: 852890 | H161: 1120772 | I161: 31.4087397 | J161: 69973.43 | K161: 86639.59 | L161: 23.81784057 | M161: 4704 | N161: 4556 | O161: -3.146258503
A162: =VLOOKUP(C162,Sheet3!$A$1:$C$821,2,FALSE) -> Elementary Schools | B162: Electric | C162: DURYEAES | D162: Katy, TX | E162: 96423 | F162: 43952 | G162: 317568 | H162: 434304 | I162: 36.75937122 | J162: 28213.78 | K162: 37346.16 | L162: 32.36850929 | M162: 2180 | N162: 2324 | O162: 6.605504587
A163: =VLOOKUP(C163,Sheet3!$A$1:$C$821,2,FALSE) -> Administration | B163: Electric | C163: ELC1 | D163: Houston, TX | E163: 6832 | F163: 367 | G163: 18800 | H163: 25000 | I163: 32.9787234 | J163: 2180.58 | K163: 2642.74 | L163: 21.19436113 | M163: 184 | N163: 196 | O163: 6.52173913
A164: =VLOOKUP(C164,Sheet3!$A$1:$C$821,2,FALSE) -> Administration | B164: Electric | C164: ELC2 | D164: Houston, TX | E164: 4573 | F164: 367 | G164: 17459 | H164: 22863 | I164: 30.95251733 | J164: 1923.63 | K164: 2525.92 | L164: 31.31007522 | M164: 165 | N164: 193 | O164: 16.96969697
A165: =VLOOKUP(C165,Sheet3!$A$1:$C$821,2,FALSE) -> Administration | B165: Electric | C165: ELDRIDGETRANS | D165: Houston, TX | E165: 26451 | F165: 44409 | G165: 305664 | H165: 321792 | I165: 5.27638191 | J165: 19462 | K165: 21412.85 | L165: 10.02389271 | M165: 1064 | N165: 1012 | O165: -4.887218045
A166: =VLOOKUP(C166,Sheet3!$A$1:$C$821,2,FALSE) -> Elementary Schools | B166: Electric | C166: EMERYES | D166: Katy, TX | E166: 98438 | F166: 44044 | G166: 314820 | H166: 492480 | I166: 56.432247 | J166: 27258.8 | K166: 39365.12 | L166: 44.41251999 | M166: 2116 | N166: 2360 | O166: 11.53119093
A167: =VLOOKUP(C167,Sheet3!$A$1:$C$821,2,FALSE) -> Elementary Schools | B167: Electric | C167: EMMOTTES | D167: Houston, TX | E167: 77394 | F167: 43952 | G167: 244608 | H167: 309312 | I167: 26.45211931 | J167: 22615.13 | K167: 29049.48 | L167: 28.4515278 | M167: 1777 | N167: 2006 | O167: 12.88688801
A168: =VLOOKUP(C168,Sheet3!$A$1:$C$821,2,FALSE) -> Administration | B168: Electric | C168: EXHIBITCENTERSCIENCERESOURCEC | D168: Cypress, TX | E168: 72198 | F168: 367 | G168: 385760 | H168: 390240 | I168: 1.161343841 | J168: 25023.87 | K168: 28210.9 | L168: 12.73595971 | M168: 1437 | N168: 1499 | O168: 4.314544189
A169: =VLOOKUP(C169,Sheet3!$A$1:$C$821,2,FALSE) -> Administration | B169: Electric | C169: EXHIBITCENTERTELGEAG | D169: Cypress, TX | E169: 33198 | F169: 367 | G169: 142447 | H169: 108849 | I169: -23.58631631 | J169: 8147.2 | K169: 6852.02 | L169: -15.89724077 | M169: 357 | N169: 293 | O169: -17.92717087
A170: =VLOOKUP(C170,Sheet3!$A$1:$C$821,2,FALSE) -> Administration | B170: Electric | C170: FALCONCOMPLEX | D170: Houston, TX | E170: 0 | F170: 367 | G170: 380064 | H170: 386400 | I170: 1.667087648 | J170: 23121.71 | K170: 24888.82 | L170: 7.642644078 | M170: 1162 | N170: 1097 | O170: -5.593803787
A171: =VLOOKUP(C171,Sheet3!$A$1:$C$821,2,FALSE) -> Elementary Schools | B171: Electric | C171: FARNEYES | D171: Cypress, TX | E171: 95036 | F171: 367 | G171: 439680 | H171: 586560 | I171: 33.40611354 | J171: 36926.46 | K171: 46668.14 | L171: 26.38129948 | M171: 2957 | N171: 2793 | O171: -5.54616165
A172: =VLOOKUP(C172,Sheet3!$A$1:$C$821,2,FALSE) -> Elementary Schools | B172: Electric | C172: FIESTES | D172: Houston, TX | E172: 96117 | F172: 44409 | G172: 303840 | H172: 399168 | I172: 31.37440758 | J172: 23854.38 | K172: 30084.8 | L172: 26.11855768 | M172: 1612 | N172: 1673 | O172: 3.784119107
A173: =VLOOKUP(C173,Sheet3!$A$1:$C$821,2,FALSE) -> Administration | B173: Electric | C173: FOODPRODUCTIONCENTER | D173: Houston, TX | E173: 57684 | F173: 367 | G173: 1713011 | H173: 1863063 | I173: 8.759546786 | J173: 100883.45 | K173: 114243.09 | L173: 13.24264783 | M173: 3610 | N173: 3624 | O173: 0.3878116343
A174: =VLOOKUP(C174,Sheet3!$A$1:$C$821,2,FALSE) -> Administration | B174: Electric | C174: FOODSERVICEWAREHOUSE | D174: Houston, TX | E174: 48487 | F174: 43952 | G174: 343200 | H174: 303936 | I174: -11.44055944 | J174: 21483.93 | K174: 21810.17 | L174: 1.518530362 | M174: 1096 | N174: 1095 | O174: -0.09124087591
A175: =VLOOKUP(C175,Sheet3!$A$1:$C$821,2,FALSE) -> Elementary Schools | B175: Electric | C175: FRANCONEES | D175: Houston, TX | E175: 88982 | F175: 44409 | G175: 371904 | H175: 502848 | I175: 35.20908622 | J175: 31753.06 | K175: 37854.52 | L175: 19.21534491 | M175: 2397 | N175: 2110 | O175: -11.97329996
A176: =VLOOKUP(C176,Sheet3!$A$1:$C$821,2,FALSE) -> Elementary Schools | B176: Electric | C176: FRAZIERES | D176: Houston, TX | E176: 88177 | F176: 44409 | G176: 401369 | H176: 603964 | I176: 50.4759959 | J176: 34639.48 | K176: 48272.23 | L176: 39.35610465 | M176: 2362 | N176: 2577 | O176: 9.102455546
A177: =VLOOKUP(C177,Sheet3!$A$1:$C$821,2,FALSE) -> Elementary Schools | B177: Electric | C177: GLEASONES | D177: Houston, TX | E177: 91424 | F177: 367 | G177: 463680 | H177: 598464 | I177: 29.06832298 | J177: 34663.66 | K177: 48029.27 | L177: 38.55798839 | M177: 2396 | N177: 2900 | O177: 21.03505843
A178: =VLOOKUP(C178,Sheet3!$A$1:$C$821,2,FALSE) -> Middle Schools | B178: Electric | C178: GOODSONMS | D178: Cypress, TX | E178: 218801 | F178: 367 | G178: 740996 | H178: 1019110 | I178: 37.53245632 | J178: 57021.21 | K178: 74033.39 | L178: 29.83482813 | M178: 4147 | N178: 4240 | O178: 2.242585001
A179: =VLOOKUP(C179,Sheet3!$A$1:$C$821,2,FALSE) -> Elementary Schools | B179: Electric | C179: HAIRGROVEES | D179: Houston, TX | E179: 90830 | F179: 44409 | G179: 405504 | H179: 465408 | I179: 14.77272727 | J179: 31770.8 | K179: 35838.3 | L179: 12.80263638 | M179: 2289 | N179: 2046 | O179: -10.61598952
A180: =VLOOKUP(C180,Sheet3!$A$1:$C$821,2,FALSE) -> Elementary Schools | B180: Electric | C180: HAMILTONES | D180: Cypress, TX | E180: 89692 | F180: 44044 | G180: 278208 | H180: 354240 | I180: 27.32919255 | J180: 23800.09 | K180: 28939.29 | L180: 21.59319566 | M180: 1745 | N180: 1759 | O180: 0.8022922636
A181: =VLOOKUP(C181,Sheet3!$A$1:$C$821,2,FALSE) -> Middle Schools | B181: Electric | C181: HAMILTONMS | D181: Cypress, TX | E181: 194726 | F181: 44044 | G181: 843921 | H181: 875195 | I181: 3.705797107 | J181: 59386.2 | K181: 65664.43 | L181: 10.57186686 | M181: 2807 | N181: 3644 | O181: 29.81831136
A182: =VLOOKUP(C182,Sheet3!$A$1:$C$821,2,FALSE) -> Elementary Schools | B182: Electric | C182: HANCOCKES | D182: Houston, TX | E182: 87259 | F182: 44409 | G182: 360080 | H182: 466848 | I182: 29.65118862 | J182: 32319.92 | K182: 38447.58 | L182: 18.95939099 | M182: 2405 | N182: 2389 | O182: -0.6652806653
A183: =VLOOKUP(C183,Sheet3!$A$1:$C$821,2,FALSE) -> Elementary Schools | B183: Electric | C183: HEMMENWAYES | D183: Katy, TX | E183: 101091 | F183: 44044 | G183: 333696 | H183: 509568 | I183: 52.70425777 | J183: 31742.68 | K183: 43879.79 | L183: 38.23593345 | M183: 2617 | N183: 2783 | O183: 6.343141001
A184: =VLOOKUP(C184,Sheet3!$A$1:$C$821,2,FALSE) -> Elementary Schools | B184: Electric | C184: HOLBROOKES | D184: Houston, TX | E184: 99937 | F184: 367 | G184: 403200 | H184: 556224 | I184: 37.95238095 | J184: 33913.24 | K184: 44675.36 | L184: 31.73427251 | M184: 2468 | N184: 2604 | O184: 5.510534846
A185: =VLOOKUP(C185,Sheet3!$A$1:$C$821,2,FALSE) -> Elementary Schools | B185: Electric | C185: HOLMSLEYES | D185: Houston, TX | E185: 81704 | F185: 44044 | G185: 259584 | H185: 327936 | I185: 26.33136095 | J185: 22064.37 | K185: 25873.15 | L185: 17.26212894 | M185: 1564 | N185: 1520 | O185: -2.813299233
A186: =VLOOKUP(C186,Sheet3!$A$1:$C$821,2,FALSE) -> Elementary Schools | B186: Electric | C186: HOOVERES | D186: Katy, TX | E186: 112519 | F186: 367 | G186: 348480 | H186: 450000 | I186: 29.1322314 | J186: 28686.4 | K186: 34354.17 | L186: 19.75769006 | M186: 1958 | N186: 1938 | O186: -1.02145046
A187: =VLOOKUP(C187,Sheet3!$A$1:$C$821,2,FALSE) -> Middle Schools | B187: Electric | C187: HOPPERMS | D187: Cypress, TX | E187: 226178 | F187: 367 | G187: 875010 | H187: 1038949 | I187: 18.73567159 | J187: 67275.05 | K187: 84024.56 | L187: 24.89706065 | M187: 4687 | N187: 4129 | O187: -11.9052699
A188: =VLOOKUP(C188,Sheet3!$A$1:$C$821,2,FALSE) -> Elementary Schools | B188: Electric | C188: HORNEES | D188: Houston, TX | E188: 95855 | F188: 44409 | G188: 396096 | H188: 506880 | I188: 27.96897722 | J188: 31011.66 | K188: 39897 | L188: 28.65161039 | M188: 2181 | N188: 2333 | O188: 6.969280147
A189: =VLOOKUP(C189,Sheet3!$A$1:$C$821,2,FALSE) -> Administration | B189: Electric | C189: ISCA | D189: Houston, TX | E189: 132467 | F189: 367 | G189: 266960 | H189: 284460 | I189: 6.555289182 | J189: 19778.17 | K189: 22114.69 | L189: 11.81363089 | M189: 1297 | N189: 1272 | O189: -1.927525058
A190: =VLOOKUP(C190,Sheet3!$A$1:$C$821,2,FALSE) -> Administration | B190: Electric | C190: ISCB | D190: Houston, TX | E190: 0 | F190: 367 | G190: 257440 | H190: 268020 | I190: 4.109695463 | J190: 17756.76 | K190: 19143.83 | L190: 7.8115039 | M190: 1057 | N190: 995 | O190: -5.865657521
A191: =VLOOKUP(C191,Sheet3!$A$1:$C$821,2,FALSE) -> Administration | B191: Electric | C191: ISCC | D191: Houston, TX | E191: 0 | F191: 367 | G191: 457120 | H191: 493040 | I191: 7.857892895 | J191: 28749.34 | K191: 33358.17 | L191: 16.03108106 | M191: 1513 | N191: 1592 | O191: 5.221414408
A192: =VLOOKUP(C192,Sheet3!$A$1:$C$821,2,FALSE) -> Administration | B192: Electric | C192: ISCC-EXLIGHT | D192: Houston, TX | E192: 0 | F192: 367 | G192: 3660 | H192: 3660 | I192: 0 | J192: 509.56 | K192: 462.89 | L192: -9.158882173 | M192: 0 | N192: 0 | O192: 0
A193: =VLOOKUP(C193,Sheet3!$A$1:$C$821,2,FALSE) -> Administration | B193: Electric | C193: ISCD | D193: Houston, TX | E193: 0 | F193: 367 | G193: 9680 | H193: 10680 | I193: 10.33057851 | J193: 1175.24 | K193: 1324.05 | L193: 12.66209455 | M193: 95 | N193: 103 | O193: 8.421052632
A194: =VLOOKUP(C194,Sheet3!$A$1:$C$821,2,FALSE) -> Administration | B194: Electric | C194: ISCDATACENTER | D194: Houston, TX | E194: 0 | F194: 367 | G194: 113320 | H194: 146018 | I194: 28.85457113 | J194: 6042.27 | K194: 8018.12 | L194: 32.7004586 | M194: 191 | N194: 237 | O194: 24.08376963
A195: =VLOOKUP(C195,Sheet3!$A$1:$C$821,2,FALSE) -> Administration | B195: Electric | C195: ISCSW | D195: Houston, TX | E195: 0 | F195: 367 | G195: 33148 | H195: 32292 | I195: -2.58235791 | J195: 2356.46 | K195: 2525.6 | L195: 7.177715726 | M195: 141 | N195: 140 | O195: -0.7092198582
A196: =VLOOKUP(C196,Sheet3!$A$1:$C$821,2,FALSE) -> Administration | B196: Electric | C196: ISCW | D196: Houston, TX | E196: 35364 | F196: 367 | G196: 255552 | H196: 337536 | I196: 32.081142 | J196: 19316 | K196: 25162.9 | L196: 30.26972458 | M196: 1322 | N196: 1384 | O196: 4.689863843
A197: =VLOOKUP(C197,Sheet3!$A$1:$C$821,2,FALSE) -> Administration | B197: Electric | C197: JARVISCENTRALPLANT | D197: Cypress, TX | E197: 12152 | F197: 367 | G197: 933668 | H197: 1480862 | I197: 58.60691381 | J197: 103924.8 | K197: 134377.59 | L197: 29.30271696 | M197: 10639 | N197: 9140 | O197: -14.08967008
A198: =VLOOKUP(C198,Sheet3!$A$1:$C$821,2,FALSE) -> High Schools | B198: Electric | C198: JERSEYVILLAGEHS | D198: Houston, TX | E198: 513823 | F198: 44409 | G198: 1953736 | H198: 2462530 | I198: 26.042106 | J198: 147069.86 | K198: 182975.05 | L198: 24.413697 | M198: 9855 | N198: 9487 | O198: -3.734145104
A199: =VLOOKUP(C199,Sheet3!$A$1:$C$821,2,FALSE) -> Administration | B199: Electric | C199: JERSEYVILLAGESTADIUM | D199: Houston, TX | E199: 2385 | F199: 367 | G199: 43296 | H199: 19200 | I199: -55.654102 | J199: 6759.38 | K199: 6946.31 | L199: 2.765490326 | M199: 750 | N199: 780 | O199: 4
A200: =VLOOKUP(C200,Sheet3!$A$1:$C$821,2,FALSE) -> Elementary Schools | B200: Electric | C200: JOWELLES | D200: Katy, TX | E200: 73726 | F200: 367 | G200: 227520 | H200: 304512 | I200: 33.83966245 | J200: 21136.43 | K200: 24456.58 | L200: 15.70818724 | M200: 1511 | N200: 1471 | O200: -2.647253475
... 634 more rows

Sheet Avg. Costs
A1: Utility | B1: (All) | E1: Utility | F1: (All)
A3: Row Labels | B3: Sum of Cost | C3: Cost/SF | E3: Row Labels | F3: Average of Area
A4: Administration | B4: 2686228.48 | C4: =B4/F4 -> 61.19640302 | E4: Administration | F4: 43895.20213
A5: Elementary Schools | B5: 5588888.24 | C5: =B5/F5 -> 59.69762092 | E5: Elementary Schools | F5: 93619.94924
A6: High Schools | B6: 6055564.36 | C6: =B6/F6 -> 11.38012417 | E6: High Schools | F6: 532117.6
A7: Middle Schools | B7: 3607370.67 | C7: =B7/F7 -> 16.53126811 | E7: Middle Schools | F7: 218215
A8: Special Schools | B8: 318337.59 | C8: =B8/F8 -> 6.373482197 | E8: Special Schools | F8: 49947.2
A9: Grand Total | B9: 18256389.34 | E9: Grand Total | F9: 148219.0614
E20: Row Labels | F20: Count of Area
E21: Elementary Schools | F21: 56
E22: High Schools | F22: 12
E23: Middle Schools | F23: 18
E24: Special Schools | F24: 5
E25: Grand Total | F25: 91

Sheet Dashboard $
A4: CFISD Energy Management Dept. Utilities (FY 2020-21)
A6: School Type Sorted | B6: UTILITY COSTS | C6: % | D6: SQU FT | E6: COST/ ft2
A7: =INDEX($AR$10:$AR$14,MATCH(AX10,$AW$10:$AW$14,0)) -> High Schools | B7: =INDEX($AS$10:$AS$14,MATCH(AX10,$AW$10:$AW$14,0)) -> 6055564.36 | C7: =B7/$B$12 -> 0.331695625 | D7: =INDEX($AV$10:$AV$14,MATCH(A7,$AU$10:$AU$14,0))/2 -> 6518488 | E7: =B7/D7 -> 0.9289829727 | AR7: Utility | AS7: (All) | AU7: Utility | AV7: (All)
A8: =INDEX($AR$10:$AR$14,MATCH(AX11,$AW$10:$AW$14,0)) -> Elementary Schools | B8: =INDEX($AS$10:$AS$14,MATCH(AX11,$AW$10:$AW$14,0)) -> 5588888.24 | C8: =B8/$B$12 -> 0.3061332797 | D8: =INDEX($AV$10:$AV$14,MATCH(A8,$AU$10:$AU$14,0))/2 -> 5415387 | E8: =B8/D8 -> 1.032038567 | AM8: Matt
A9: =INDEX($AR$10:$AR$14,MATCH(AX12,$AW$10:$AW$14,0)) -> Middle Schools | B9: =INDEX($AS$10:$AS$14,MATCH(AX12,$AW$10:$AW$14,0)) -> 3607370.67 | C9: =B9/$B$12 -> 0.1975949718 | D9: =INDEX($AV$10:$AV$14,MATCH(A9,$AU$10:$AU$14,0))/2 -> 3968953 | E9: =B9/D9 -> 0.9088973011 | AM9: =AV10/12 -> 208286.4167 | AN9: =#REF! ->  | AO9: =AS10/12 -> 223852.3733 | AR9: Row Labels | AS9: Sum of Cost | AU9: Row Labels | AV9: Sum of Area
A10: =INDEX($AR$10:$AR$14,MATCH(AX13,$AW$10:$AW$14,0)) -> Administration | B10: =INDEX($AS$10:$AS$14,MATCH(AX13,$AW$10:$AW$14,0)) -> 2686228.48 | C10: =B10/$B$12 -> 0.1471390909 | D10: =INDEX($AV$10:$AV$14,MATCH(A10,$AU$10:$AU$14,0))/2 -> 1249718.5 | E10: =B10/D10 -> 2.149466844 | AM10: =AV11/18 -> 601709.6667 | AN10: =#REF! ->  | AO10: =AS11/18 -> 310493.7911 | AR10: Administration | AS10: 2686228.48 | AU10: Administration | AV10: 2499437 | AW10: =RANK(AS10,$AS$10:$AS$14,0) -> 4 | AX10: 1 | AY10: =AV10/2 -> 1249718.5
A11: =INDEX($AR$10:$AR$14,MATCH(AX14,$AW$10:$AW$14,0)) -> Special Schools | B11: =INDEX($AS$10:$AS$14,MATCH(AX14,$AW$10:$AW$14,0)) -> 318337.59 | C11: =B11/$B$12 -> 0.01743705122 | D11: =INDEX($AV$10:$AV$14,MATCH(A11,$AU$10:$AU$14,0))/2 -> 296073 | E11: =B11/D11 -> 1.075199664 | AM11: =AV12/56 -> 232803.1429 | AN11: =#REF! ->  | AO11: =AS12/56 -> 108135.0779 | AR11: Elementary Schools | AS11: 5588888.24 | AU11: Elementary Schools | AV11: 10830774 | AW11: =RANK(AS11,$AS$10:$AS$14,0) -> 2 | AX11: 2 | AY11: 5415387 | BD11: Utility | BE11: (All)
A12: ="% Expenses ( "&ROUND(B12/AN23*100,1)&"%)" -> % Expenses ( 100%) | B12: =ROUND(SUM(B7:B11),0) -> 18256389 | D12: =IFERROR(SUM(D7:D11),"") -> 17448619.5 | E12: Total Squ Ft. | AM12: =AV13/4 -> 1984476.5 | AN12: =#REF! ->  | AO12: =AS13/4 -> 901842.6675 | AR12: High Schools | AS12: 6055564.36 | AU12: High Schools | AV12: 13036976 | AW12: =RANK(AS12,$AS$10:$AS$14,0) -> 1 | AX12: 3 | AY12: 6518488
AR13: Middle Schools | AS13: 3607370.67 | AU13: Middle Schools | AV13: 7937906 | AW13: =RANK(AS13,$AS$10:$AS$14,0) -> 3 | AX13: 4 | AY13: 3968953 | BD13: Row Labels | BE13: Sum of Cost
AR14: Special Schools | AS14: 318337.59 | AU14: Special Schools | AV14: 592146 | AW14: =RANK(AS14,$AS$10:$AS$14,0) -> 5 | AX14: 5 | AY14: 296073 | BD14: Administration | BE14: 2686228.48
E15: Costs per Squ. ft. | H15: Consumption | AR15: Grand Total | AS15: 18256389.34 | AU15: Grand Total | AV15: 34897239 | AY15: 17448619.5 | BD15: Elementary Schools | BE15: 5588888.24
E16: Total | F16: =AS15/AY15 -> 1.046294198 | H16: Utility | I16: Annual Usage | K16: Blended Rate | BD16: High Schools | BE16: 6055564.36
E17: Schools Only | F17: =SUM(AS11:AS14)/SUM(AY11:AY14) -> 0.9611862471 | H17: Electric | I17: =Benchmark!F12 -> 185482186 | J17: kWhs | K17: =AS29/I17 -> 0.07222824627 | L17: Per kWh | AM17: Utility | AN17: Costs | BD17: Middle Schools | BE17: 3607370.67
H18: Water | I18: =water!B26*1000 -> 449628000 | J18: Gallons | K18: =(AS40+AS61)/(I18/1000) -> 8.889615126 | L18: Per kGal | AM18: Electric | AN18: 13397053.01 | BD18: Special Schools | BE18: 318337.59
H19: Natural Gas | I19: =Benchmark!F25*10 -> 2183414.174 | J19: Therms | K19: =AS51/I19 -> 0.38465266 | L19: Per Therm | AM19: Fire | AN19: 22460.39 | BD19: #N/A | BE19: 6588.7
AM20: Irrigation | AN20: 705569.4 | AR20: Electric Only | BD20: Grand Total | BE20: 18262978.04
AM21: Nat_Gas | AN21: 846444.77 | AR21: Utility | AS21: Electric | AU21: Utility | AV21: (All)
H22: Energy Benchmarks | AM22: Water | AN22: 3291450.47
H23: Benchmark | I23: Schools Only | J23: District | AM23: Grand Total | AN23: 18262978.04 | AR23: Row Labels | AS23: Sum of Cost | AU23: Row Labels | AV23: Sum of Area
H24: kWh/SF | I24: =Benchmark!G13 -> 9.796852682 | J24: =Benchmark!G12 -> 10.63019261 | AR24: Administration | AS24: 1846183.16 | AU24: Administration | AV24: 2499437 | AW24: 4 | AX24: 1
A25: Prepared by Jay Bonham, Energy Manager | H25: kBtus/SF | I25: =Benchmark!N30 -> 44.35408066 | J25: =Benchmark!K30 -> 48.40820751 | AR25: Elementary Schools | AS25: 4200388.4 | AU25: Elementary Schools | AV25: 10830774 | AW25: 2 | AX25: 2
AR26: High Schools | AS26: 4507837.03 | AU26: High Schools | AV26: 13036976 | AW26: 1 | AX26: 3
AR27: Middle Schools | AS27: 2578059.92 | AU27: Middle Schools | AV27: 7937906 | AW27: 3 | AX27: 4
AR28: Special Schools | AS28: 264584.5 | AU28: Special Schools | AV28: 592146 | AW28: 5 | AX28: 5
AR29: Grand Total | AS29: 13397053.01 | AU29: Grand Total | AV29: 34897239
AR31: Water
AR32: Utility | AS32: Water | AU32: Utility | AV32: (All)
AR34: Row Labels | AS34: Sum of Cost | AU34: Row Labels | AV34: Sum of Area
AR35: Administration | AS35: 635915.75 | AU35: Administration | AV35: 2499437 | AW35: 4 | AX35: 1
AR36: Elementary Schools | AS36: 1055833.16 | AU36: Elementary Schools | AV36: 10830774 | AW36: 2 | AX36: 2
AR37: High Schools | AS37: 925723.29 | AU37: High Schools | AV37: 13036976 | AW37: 1 | AX37: 3
AR38: Middle Schools | AS38: 640978.09 | AU38: Middle Schools | AV38: 7937906 | AW38: 3 | AX38: 4
AR39: Special Schools | AS39: 33000.18 | AU39: Special Schools | AV39: 592146 | AW39: 5 | AX39: 5
AR40: Grand Total | AS40: =SUM(AS35:AS39) -> 3291450.47 | AU40: Grand Total | AV40: 34897239
AR42: Nat Gas
AR43: Utility | AS43: Nat_Gas | AU43: Utility | AV43: (All)
AR45: Row Labels | AS45: Sum of Cost | AU45: Row Labels | AV45: Sum of Area
AR46: Administration | AS46: 142126.38 | AU46: Administration | AV46: 2499437 | AW46: 3 | AX46: 1
AR47: Elementary Schools | AS47: 198760.35 | AU47: Elementary Schools | AV47: 10830774 | AW47: 4 | AX47: 2
AR48: High Schools | AS48: 264984.33 | AU48: High Schools | AV48: 13036976 | AW48: 1 | AX48: 3
AR49: Middle Schools | AS49: 214672.5 | AU49: Middle Schools | AV49: 7937906 | AW49: 2 | AX49: 4
AR50: Special Schools | AS50: 19312.51 | AU50: Special Schools | AV50: 592146 | AW50: 5 | AX50: 5
AR51: Grand Total | AS51: 839856.07 | AU51: Grand Total | AV51: 34897239
AR53: Utility | AS53: Irrigation | AU53: Utility | AV53: (All)
AR55: Row Labels | AS55: Sum of Cost | AU55: Row Labels | AV55: Sum of Area
AR56: Administration | AS56: 58384.95 | AU56: Administration | AV56: 2499437 | AW56: 4 | AX56: 1
AR57: Elementary Schools | AS57: 128212.83 | AU57: Elementary Schools | AV57: 10830774 | AW57: 3 | AX57: 2
AR58: High Schools | AS58: 355260.27 | AU58: High Schools | AV58: 13036976 | AW58: 1 | AX58: 3
AR59: Middle Schools | AS59: 162270.95 | AU59: Middle Schools | AV59: 7937906 | AW59: 2 | AX59: 4
AR60: Special Schools | AS60: 1440.4 | AU60: Special Schools | AV60: 592146 | AW60: 5 | AX60: 5
AR61: Grand Total | AS61: =SUM(AS56:AS60) -> 705569.4 | AU61: Grand Total | AV61: 34897239

Sheet Benchmark
D4: Utility | E4: Electric
D6: Row Labels | E6: Sum of Area | F6: Sum of kWhC | G6: kWh/SF
D7: Administration | E7: 2499437 | F7: 26475641 | G7: =F7/(E7/2) -> 21.18528373
D8: Elementary Schools | E8: 10830774 | F8: 54323729 | G8: =F8/(E8/2) -> 10.03136599
D9: High Schools | E9: 13036976 | F9: 65028279 | G9: 9.97597587
D10: Middle Schools | E10: 7937906 | F10: 36210138 | G10: 9.123347644
D11: Special Schools | E11: 592146 | F11: 3444399 | G11: 11.63361401
D12: Grand Total | E12: 34897239 | F12: 185482186 | G12: =SUMPRODUCT(G7:G11,E7:E11)/SUM(E7:E11) -> 10.63019261 | H12: ALL
G13: =SUMPRODUCT(F8:F10,G8:G10)/SUM(F8:F10) -> 9.796852682 | H13: Schools Only
D16: Utility | E16: Nat_Gas
D18: Row Labels | E18: Sum of Area | F18: Sum of kWhC
D19: Administration | E19: 2318353 | F19: 35743
D20: Elementary Schools | E20: 10666462 | F20: 50247
D21: High Schools | E21: 11673918 | F21: 70232
D22: Middle Schools | E22: 7929938 | F22: 56507
D23: Special Schools | E23: 608029 | F23: 4413
D24: #N/A | E24: 623683 | F24: 1199.4174 | K24: District | N24: School Only
D25: Grand Total | E25: 33820383 | F25: 218341.4174 | K25: Combined Electric & Gas (kBtus) | N25: Combined Electric & Gas (kBtus)
F26: =(F25*1000)/(E25/2) -> 12.91182406 | G26: kBTU/ft2 | K26: =(F25*10*100000/1000)*0.97 -> 211791174.9 | L26: Gas | N26: =(SUM(F20:F23)*10*100000/1000)*0.97 -> 175957030 | O26: Gas
K27: =F12*3.412 -> 632865218.6 | L27: kWh | N27: =SUM(F8:F11)*3.412 -> 542530331.5 | O27: Electric
K28: =SUM(K26:K27) -> 844656393.5 | L28: TOTAL | N28: =SUM(N26:N27) -> 718487361.5 | O28: TOTAL
K29: =E12/2 -> 17448619.5 | L29: Area | N29: =SUM(E8:E11)/2 -> 16198901 | O29: Area
K30: =K28/K29 -> 48.40820751 | N30: =N28/N29 -> 44.35408066

Sheet water
A1: Location:
A2: Time: | C2: Commodity: | D2: Water | E2: Created By:
A3: Year | B3: Use (KGAL)
A4: 2019 | B4: 338486
A5: 2020 | B5: 320067
A6: 2021 | B6: 345153
A9: Location:
A10: Time: | C10: Commodity: | D10: Irrigation | E10: Created By:
A11: Year | B11: Use (KGAL)
A12: 2019 | B12: 90056
A13: 2020 | B13: 125084
A14: 2021 | B14: 104099
A17: Location:
A18: Time: | C18: Commodity: | D18: Fire Protection | E18: Created By:
A19: Year | B19: Use (KGAL)
A20: 2019 | B20: 198
A21: 2020 | B21: 356
A22: 2021 | B22: 376
B25: Total Water
B26: =B6+B14+B22 -> 449628 | C26: KGAL

Sheet Electric Matt
D3: Average | E3: Average
C4: Avg. | D4: Annual | E4: Annual
C5: Sq Feet | D5: Cost/Sq.Ft. | E5: Cost | N5: School Type Sorted | O5: COSTS | P5: % | Q5: SQU FT | R5: COST/ ft2
B6: High School | C6: ='Dashboard $'!AV26/2/12 -> 543207.3333 | D6: =O6/Q6 -> 0.6915464184 | E6: =O6/M6 -> 375653.0858 | M6: 12 | N6: High Schools | O6: =O18 -> 4507837.03 | P6: =P18 -> 0.3364797489 | Q6: 6518488 | R6: 0.6915464184
B7: Middle School | C7: ='Dashboard $'!AV27/2/18 -> 220497.3889 | D7: =O7/Q7 -> 0.6495566765 | E7: =O7/M7 -> 143225.5511 | M7: 18 | N7: Middle Schools | O7: =O19 -> 2578059.92 | P7: 0.1924348527 | Q7: 3968953 | R7: 0.6495566765
B8: Elementary School | C8: ='Dashboard $'!AV25/2/57 -> 95006.78947 | D8: =O8/Q8 -> 0.7756395619 | E8: =O8/M8 -> 75006.93571 | M8: 56 | N8: Elementary Schools | O8: =O20 -> 4200388.4 | P8: 0.3135307743 | Q8: 5415387 | R8: 0.7756395619
B9: Special School | C9: ='ALL Matt'!C9/2/5 -> 5921.46 | D9: =O9/Q9 -> 0.8936461616 | E9: =O9/M9 -> 52916.9 | M9: 5 | N9: Special Schools | O9: =O21 -> 264584.5 | P9: 0.01974945535 | Q9: 296073 | R9: 0.8936461616
C10: Wt. Avg. | D10: =SUMPRODUCT(C6:C9,D6:D9)/SUM(C6:C9) -> 0.6914625871
N17: School Type Sorted | O17: UTILITY COSTS | P17: % | Q17: SQU FT | R17: COST/ ft2
N18: High Schools | O18: 4507837.03 | P18: 0.3364797489 | Q18: 6518488 | R18: 0.6915464184
N19: Middle Schools | O19: 2578059.92 | P19: 0.1924348527 | Q19: 3968953 | R19: 0.6495566765
N20: Elementary Schools | O20: 4200388.4 | P20: 0.3135307743 | Q20: 5415387 | R20: 0.7756395619
N21: Special Schools | O21: 264584.5 | P21: 0.01974945535 | Q21: 296073 | R21: 0.8936461616
N25: School Type Sorted | O25: UTILITY COSTS | P25: % | Q25: SQU FT | R25: COST/ ft2
N26: High Schools | O26: 4507837.03 | P26: 0.3364797489 | Q26: 6518488 | R26: 0.6915464184
N27: Elementary Schools | O27: 4200388.4 | P27: 0.3135307743 | Q27: 5415387 | R27: 0.7756395619
N28: Middle Schools | O28: 2578059.92 | P28: 0.1924348527 | Q28: 3968953 | R28: 0.6495566765
N29: Administration | O29: 1846183.16 | P29: 0.1378051695 | Q29: 1249718.5 | R29: 1.477279211
N30: Special Schools | O30: 264584.5 | P30: 0.01974945535 | Q30: 296073 | R30: 0.8936461616
N31: % Expenses ( 73.4%) | O31: 13397053 | Q31: 17448619.5 | R31: Total Squ Ft.

Sheet Gas Matt
D3: Average | E3: Average
C4: Avg. | D4: Annual | E4: Annual
C5: Sq Feet | D5: Cost/Sq.Ft. | E5: Cost | L5: School Type Sorted | M5: COSTS | N5: % | O5: SQU FT | P5: COST/ ft2
B6: High School | C6: ='Electric Matt'!C6 -> 543207.3333 | D6: =E6/C6 -> 0.04065119549 | E6: =M6/K6 -> 22082.0275 | K6: 12 | L6: High Schools | M6: =M18 -> 264984.33 | N6: =N18 -> 0.3155116234 | O6: 6518488 | P6: 0.04065119549
B7: Middle School | C7: ='Electric Matt'!C7 -> 220497.3889 | D7: =E7/C7 -> 0.05124120829 | E7: =M7/K7 -> 11298.55263 | K7: 19 | L7: Middle Schools | M7: =M19 -> 214672.5 | N7: 0.2556063182 | O7: 3968953 | P7: 0.05408794208
B8: Elementary School | C8: ='Electric Matt'!C8 -> 95006.78947 | D8: =E8/C8 -> 0.03735829812 | E8: =M8/K8 -> 3549.291964 | K8: 56 | L8: Elementary Schools | M8: =M20 -> 198760.35 | N8: 0.2366600346 | O8: 5415387 | P8: 0.03670288938
B9: Special School | C9: ='ALL Matt'!C9 -> 59214.6 | D9: =E9/C9 -> 0.06522887936 | E9: =M9/K9 -> 3862.502 | K9: 5 | L9: Special Schools | M9: =M21 -> 19312.51 | N9: 0.02299502534 | O9: 296073 | P9: 0.06522887936
C10: Wt. Avg. | D10: =SUMPRODUCT(C6:C9,D6:D9)/SUM(C6:C9) -> 0.04443971424 | M10: =SUM(M6:M9) -> 697729.69
L17: School Type Sorted | M17: UTILITY COSTS | N17: % | O17: SQU FT | P17: COST/ ft2
L18: High Schools | M18: 264984.33 | N18: 0.3155116234 | O18: 6518488 | P18: 0.04065119549
L19: Middle Schools | M19: 214672.5 | N19: 0.2556063182 | O19: 3968953 | P19: 0.05408794208
L20: Elementary Schools | M20: 198760.35 | N20: 0.2366600346 | O20: 5415387 | P20: 0.03670288938
L21: Special Schools | M21: 19312.51 | N21: 0.02299502534 | O21: 296073 | P21: 0.06522887936

Sheet Water Matt
D3: Average | E3: Average
C4: Avg. | D4: Annual | E4: Annual
C5: Sq Feet | D5: Cost/Sq.Ft. | E5: Cost | N5: School Type Sorted | O5: COSTS | P5: % | Q5: SQU FT | R5: COST/ ft2
B6: High School | C6: ='Electric Matt'!C6 -> 543207.3333 | D6: =E6/C6 -> 0.1967853588 | E6: =O6/M6 -> 106895.25 | M6: 12 | N6: High Schools | O6: =O16+O22+O28 -> 1282743 | Q6: =Q16 -> 6518488 | R6: =O6/Q6 -> 0.1967853588
B7: Middle School | C7: ='Electric Matt'!C7 -> 220497.3889 | D7: =E7/C7 -> 0.1944499097 | E7: =O7/M7 -> 42875.69737 | M7: 19 | N7: Middle Schools | O7: =O17+O23+O29 -> 814638.25 | Q7: =Q17 -> 3968953 | R7: =O7/Q7 -> 0.2052526825
B8: Elementary School | C8: ='Electric Matt'!C8 -> 95006.78947 | D8: =E8/C8 -> 0.2236192608 | E8: =O8/M8 -> 21245.34804 | M8: 56 | N8: Elementary Schools | O8: 1189739.49 | Q8: 5415387 | R8: 0.2196961159
B9: Special School | C9: ='ALL Matt'!C9 -> 59214.6 | D9: =E9/C9 -> 0.1163246226 | E9: =O9/M9 -> 6888.116 | M9: 5 | N9: Special Schools | O9: 34440.58 | Q9: 296073 | R9: =O9/Q9 -> 0.1163246226
C10: Wt. Avg. | D10: =SUMPRODUCT(C6:C9,D6:D9)/SUM(C6:C9) -> 0.1938112547 | Q10: =SUM(Q6:Q9) -> 16198901
M16: W | N16: High Schools | O16: 925723.29 | P16: 0.2812509046 | Q16: 6518488 | R16: 0.1420150332
N17: Middle Schools | O17: 640978.09 | P17: 0.1947403394 | Q17: 3968953 | R17: 0.1614980298
N18: Elementary Schools | O18: 1055833.16 | P18: 0.3207805557 | Q18: 5415387 | R18: 0.1949691056
N19: Special Schools | O19: 33000.18 | P19: 0.01002603108 | Q19: 296073 | R19: 0.1114596062
M22: I | N22: High Schools | O22: 355260.27 | P22: 0.5035088985 | Q22: 6518488 | R22: 0.05450041022
N23: Middle Schools | O23: 162270.95 | P23: 0.2299859404 | Q23: 3968953 | R23: 0.04088507725
N24: Elementary Schools | O24: 128212.83 | P24: 0.181715509 | Q24: 5415387 | R24: 0.02367565421
N25: Special Schools | O25: 1440.4 | P25: 0.002041472911 | Q25: 296073 | R25: 0.004865016398
M28: F | N28: High Schools | O28: 1759.44 | P28: 0.03916742726 | Q28: 6518488 | R28: 0.0002699153546
N29: Middle Schools | O29: 11389.21 | P29: 0.2535386568 | Q29: 3968953 | R29: 0.002869575427
N30: Elementary Schools | O30: 5693.5 | P30: 0.1267447296 | Q30: 5415387 | R30: 0.001051356071

Sheet ALL Matt
D3: Average | E3: Average
C4: Avg. | D4: Annual | E4: Annual
C5: Sq Feet | D5: Cost/Sq.Ft. | E5: Cost | N5: School Type Sorted | O5: COSTS | P5: % | Q5: SQU FT | R5: COST/ ft2
B6: High School | C6: ='Electric Matt'!C6 -> 543207.3333 | D6: =E6/C6 -> 0.9289829727 | E6: =O6/M6 -> 504630.3633 | M6: 12 | N6: High Schools | O6: =O17 -> 6055564.36 | P6: =P17 -> 0.331695625 | Q6: 6518488 | R6: 0.9289829727
B7: Middle School | C7: ='Electric Matt'!C7 -> 220497.3889 | D7: =E7/C7 -> 0.8610606011 | E7: =O7/M7 -> 189861.6142 | M7: 19 | N7: Middle Schools | O7: =O18 -> 3607370.67 | P7: 0.1975949718 | Q7: 3968953 | R7: 0.9088973011
B8: Elementary School | C8: ='Electric Matt'!C8 -> 95006.78947 | D8: =E8/C8 -> 1.050467827 | E8: =O8/M8 -> 99801.57571 | M8: 56 | N8: Elementary Schools | O8: =O19 -> 5588888.24 | P8: 0.3061332797 | Q8: 5415387 | R8: 1.032038567
B9: Special School | C9: =Q9/M9 -> 59214.6 | D9: =E9/C9 -> 1.075199664 | E9: =O9/M9 -> 63667.518 | M9: 5 | N9: Special Schools | O9: =O20 -> 318337.59 | P9: 0.01743705122 | Q9: 296073 | R9: 1.075199664
C10: Wt. Avg. | D10: =SUMPRODUCT(C6:C9,D6:D9)/SUM(C6:C9) -> 0.9346733472
N17: High Schools | O17: 6055564.36 | P17: 0.331695625 | Q17: 6518488 | R17: 0.9289829727
N18: Middle Schools | O18: 3607370.67 | P18: 0.1975949718 | Q18: 3968953 | R18: 0.9088973011
N19: Elementary Schools | O19: 5588888.24 | P19: 0.3061332797 | Q19: 5415387 | R19: 1.032038567
N20: Special Schools | O20: 318337.59 | P20: 0.01743705122 | Q20: 296073 | R20: 1.075199664
N23: High Schools | O23: 6055564.36 | P23: 0.331695625 | Q23: 6518488 | R23: 0.9289829727
N24: Middle Schools | O24: 3607370.67 | P24: 0.1975949718 | Q24: 3968953 | R24: 0.9088973011
N25: Elementary Schools | O25: 5588888.24 | P25: 0.3061332797 | Q25: 5415387 | R25: 1.032038567
N26: Special Schools | O26: 318337.59 | P26: 0.01743705122 | Q26: 296073 | R26: 1.075199664
N27: Administration | O27: 2686228.48 | P27: 0.1471390909 | Q27: 1249718.5 | R27: 2.149466844

Sheet %
D4: Utility | E4: Electric
D6: Row Labels | E6: Sum of Area | F6: Sum of Mmbtus | G6: kWh/SF
D7: Administration | E7: 2499437 | F7: 26475641 | G7: =ROUND((F7/E7*1000000)/3412,1)*2 -> 6209
D8: Elementary Schools | E8: 10830774 | F8: 54323729 | G8: =ROUND((F8/E8*1000000)/3412,1)*2 -> 2940
D9: High Schools | E9: 13036976 | F9: 65028279 | G9: =ROUND((F9/E9*1000000)/3412,1)*2 -> 2923.8
D10: Middle Schools | E10: 7937906 | F10: 36210138 | G10: =ROUND((F10/E10*1000000)/3412,1)*2 -> 2674
D11: Special Schools | E11: 592146 | F11: 3444399 | G11: =ROUND((F11/E11*1000000)/3412,1)*2 -> 3409.6
D12: Grand Total | E12: 34897239 | F12: 185482186 | G12: =SUMPRODUCT(G7:G11,E7:E11)/SUM(E7:E11) -> 3115.545386 | H12: ALL
G13: =SUMPRODUCT(F8:F10,G8:G10)/SUM(F8:F10) -> 2871.311343 | H13: Schools Only
D16: Utility | E16: (Multiple Items)
D18: Row Labels | E18: Sum of Area | F18: Sum of Mmbtus
D19: Elementary Schools | E19: 21497236 | F19: 54373976
D20: High Schools | E20: 24710894 | F20: 65098511
D21: Middle Schools | E21: 15867844 | F21: 36266645
D22: Grand Total | E22: 62075974 | F22: 155739132
F24: kBtus/SF | I24: kbtus
F25: Schools Only | H25: ALL | I25: 41.24
F26: =(F22*1000)/((SUM(E8:E10)/2)) -> 9793.172133 | H26: Electric | I26: 33.03 | J26: =I26/I25 -> 0.8009214355
H27: Gas | I27: =I25-I26 -> 8.21 | J27: =I27/I25 -> 0.1990785645
D30: Utility | E30: (Multiple Items)
D32: Row Labels | E32: Sum of Area | F32: Sum of Mmbtus
D33: Administration | E33: 4817790 | F33: 26511384
D34: Elementary Schools | E34: 21497236 | F34: 54373976
D35: High Schools | E35: 24710894 | F35: 65098511
D36: Middle Schools | E36: 15867844 | F36: 36266645
D37: Special Schools | E37: 1200175 | F37: 3448812
D38: #N/A | E38: 623683 | F38: 1199.4174
D39: Grand Total | E39: 68717622 | F39: 185700527.4
F40: kBtus/SF
F41: ALL
F42: =F38*1000/(E12/2) -> 0.06873995963
